Workbook

Sheet Serviceability (hidden)
C3: Serviceability Calculator (Residential)
D4: RedZed Lending Solutions Pty Ltd (ACL 311128)
D6: Information can be entered in the clear boxes, the grey boxes contain RedZed calculations.
D8: Application name - mandatory
D10: Income Table | I10: Gross Annual | N10: Net Monthly
D12: Personal Income | E12: Select Household | F12: PAYG | H12: Self Employed
D13: Applicant / Guarantor 1 | F13: 5000 | H13: 5000 | I13: =IFERROR(F13+H13,0) -> 10000 | N13: ='Tax Calc'!I5 -> 0
D14: Applicant / Guarantor 2 | I14: =IFERROR(F14+H14,0) -> 0 | N14: ='Tax Calc'!I6 -> 0
D15: Applicant / Guarantor 3 | H15: 400 | I15: =IFERROR(F15+H15,0) -> 400 | N15: ='Tax Calc'!I7 -> 0
D16: Applicant / Guarantor 4 | I16: =IFERROR(F16+H16,0) -> 0 | N16: ='Tax Calc'!I8 -> 0
H18: Select Household | I18: Enter Source of Income
D19: Applicant / Guarantor 1 | E19: Other Regular Monthly Income (eg - Centrelink payments, investments) | I19: dfdf | N19: dfdf
D20: Applicant / Guarantor 2 | E20: Other Regular Monthly Income (eg - Centrelink payments, investments)
D21: Applicant / Guarantor 3 | E21: Other Regular Monthly Income (eg - Centrelink payments, investments)
D22: Applicant / Guarantor 4 | E22: Other Regular Monthly Income (eg - Centrelink payments, investments)
D24: Rental Income | E24: Existing | N24: =I24*0.8/12 -> 0
D25: Rental Income | E25: New | N25: =I25*0.8/12 -> 0
D27: Company Income (only to be used if the company is the loan applicant)
D28: *If a guarantor's income is also required to help with serviceability,
D29: all company and guarantor debts, and living expenses need to be included
D30: Company Net Profit Before Tax - Full Doc or Alt Doc Self Certified | N30: =(I30-(I30*Table_Company_Tax_Rate))/12 -> 0
D31: =IF(I30 <> 0, "Only NPBT from the borrowing Company entity can be entered in this field. Other related company NPBT needs to be allocated to the director(s)/guarantor(s)", 0) -> 0
D32: Total Monthly Net Income | N32: =SUM(N13,N14,N15,N16,N19,N20,N21,N22,N24,N25,N30) -> 0
D35: Monthly Living Expenses
D37: Applicants(s) declared expenses - mandatory
D39: Ongoing (combined) standard monthly living expenses declared by applicant(s)
D41: RedZed Living Allowance
D42: Number of adults - household 1 | J42: =Tables!E84 -> 
D43: Number of dependant children - household 1
D44: Number of adults - household 2 | J44: =Tables!E85 -> 
D45: Number of dependant children - household 2
D47: Total Monthly Living Expenses used in assessment | N47: =MAX(SUM(N42:N45),I39) -> 0
D50: Available Income | N50: =Tables!B313 -> 0
D52: Commitments | N52: Monthly
D54: RedZed Loan Applied For
E56: Loan 1 | N56: =Tables!B319 -> 0
E57: Loan 2 | N57: =Tables!B320 -> 0
E58: Loan 3 | N58: =Tables!B321 -> 0
D59: Note: An interest rate buffer is automatically applied by the calculator. You do not need to apply a separate buffer.
D61: Existing Loans | E61: Loan 1 - Existing Secured
E62: Loan 2 - Existing Secured
E63: Loan 3 - Existing Unsecured
E64: Loan 4 - Existing Unsecured
D67: Credit Cards | K67: (@3.82%) | N67: =I67*3.82% -> 0
D69: Maintenance / On Going Rent
D71: Other Fixed Monthly Repayments
D73: Total Monthly Commitments | N73: =SUM(N56:N71) -> 0
K75: Pass | N75: (DSR)
D76: This Serviceability Calculator is intended as a guide only and no loan approval can be assumed on the basis of the results of this calculator. All applications remain subject to the normal credit and approval criteria of RedZed Lending Solutions Pty Ltd. | N76: =IFERROR('Serviceability Calc'!C22,0) -> 0
K78: DTI must also be met for Regulated Loans
K79: For Company Borrowers DSR must be >1.10
K80: For IO Inv loans > 75% DSR must be >1.10
D81: Debt to Income Ratio - minimum requirements - Regulated Loans Only | N81: DTI
D82: Borrower/income Type | E82: DTI > 6.0 - 7.0 | F82: DTI > 7.0 - < 8.0 | G82: DTI > 8.0 - 8.5 | I82: DTI > 8.5 | N82: =IFERROR((SUM(I56:I58)+SUM(I61:I64)+I67)/(SUM(I13:I16)+SUM(N19:N22)*12+SUM(I24:I25)),"") -> 0
D83: Self Employed | E83: DSR >1.10, >/=1.06 with rental income DTI up to 7.0 | F83: DSR >1.10, >/=1.06 with rental income DTI > 7.0 - < 8.0 | G83: Minimum DSR >/=1.02 All income | I83: Contact your BDM
D84: Self Employed & PAYG (PAYG < 25% of total income) | E84: DSR >1.10, >/=1.06 with rental income DTI up to 7.0) | F84: DSR >1.10, >/=1.06 with rental income DTI </= 8.0 | G84: Minimum DSR >/=1.02 All income | I84: Contact your BDM
D85: Self Employed & PAYG (PAYG > 25% of total income) | E85: DSR >1.10, >/=1.06 with rental income DTI up to 7.0 | F85: DSR >1.10, >/=1.06 with rental income DTI </= 8.0 | G85: Minimum DSR >/=1.02 All income | I85: Contact your BDM
D86: PAYG Only | E86: DSR >1.10, >/=1.06 with rental income DTI up to 6.5 | F86: DSR >1.10, >/=1.06 with rental income > 6.5 - </= 7.5 | G86: Minimum DSR >/=1.02 All income DTI > 7.5 - =/> 8.0 | I86: Contact your BDM
D89: I, the Introducer, confirm that reasonable enquiries about the applicant(s) current and ongoing financial situation have been undertaken and are reflected in the figures entered into this calculation. The applicants(s) have been given sufficient time to consider the declared monthly living expenses amount which has been derived following due consideration.
O94: ='Version Control'!I1 -> v1.6 250108

Sheet SMSF Serviceability Calculator
C3: SMSF Serviceability Calculator
D4: RedZed Lending Solutions Pty Ltd (ACL 311128)
D6: Enter information in the pink boxes.The grey boxes contain calculated results.
D8: SMSF Application name - mandatory
D10: Number of separate households the SMSF members reside in? | H10: =HYPERLINK("#"&ADDRESS(ROW(),COLUMN()-1),CHAR(128)) -> €
D14: Superannuation Income Table - Existing contributions to SMSF or Retail fund | I14: Gross Annual Contributions | N14: Net Monthly
D16: Superannuation Contributions (RedZed allow maximum 4 members)
D17: Member 1 | E17: Verified existing contributions | I17: 0 | N17: =Tables!D384 -> 0
D18: Member 2 | E18: Verified existing contributions | I18: 0 | N18: =Tables!E384 -> 0
D19: Member 3 | E19: Verified existing contributions | I19: 0 | N19: =Tables!F384 -> 0
D20: Member 4 | E20: Verified existing contributions | I20: 0 | N20: =Tables!G384 -> 0
D22: SMSF Rental Income | E22: Commercial – If current lease has > 12 months remaining | I22: 0 | N22: =I22*0.9/12 -> 0
D23: SMSF Rental Income | E23: Commercial – If current lease has < 12 months remaining | I23: 0 | N23: =I23*0.8/12 -> 0
D24: SMSF Rental Income | E24: Residential Lease | I24: 0 | N24: =I24*0.85/12 -> 0
D25: SMSF Rental Income | E25: Short Term Rental (annualised last 6 months average) | I25: 0 | N25: =I25*0.8/12 -> 0
D26: SMSF Liquid Asset - post settlement of this loan (combined value of – cash, shares, bonds held in SMSF) *Refer product guide for minimum liquid asset requirements
I27: Liquid Asset Total (post settlement)
I28: 0 | N28: =I28*0.04*0.85/12 -> 0
D29: =IF(AND(EXACT(G51,Tables!A325),I28 < 6*SUM(N51:N60),I28 >= 3*SUM(N51:N60)),"Minimum Liquid Asset Position is less than required. Contact your BDM.",IF(I28 < 3*SUM(N51:N60), "Minimum Liquid Asset Position is less than required. Contact your BDM.", 0)) -> 0
D30: Total Monthly Net Income | N30: =SUM(N17:N20,N22:N25,N28) -> 0
D33: Ongoing SMSF Expenses & Withdrawals | I33: Gross Annual
D35: Existing Superannuation Fund Expenses
D36: Audit, Accountant, Financial Planner Fees, etc | I36: 0 | J36: Min. $2000.00 p.a. | N36: =IF(ISBLANK(I36),0,IF(I36<2000,2000,I36)/12) -> 166.6666667
D37: Insurance Costs (life/Income Protection/Property, etc) | I37: 0 | N37: =IF(ISBLANK(I37),0,I37/12) -> 0
D39: Regular Withdrawals from the fund (If Any) | I39: 0 | N39: =I39/12 -> 0
J40: =Tables!E84 -> 
D41: Total Monthly SMSF Expenses and Withdrawals | J41: =Tables!E85 ->  | N41: =N36+N37+N39 -> 166.6666667
D45: Available Income | N45: =N30-N41 -> -166.6666667
D47: SMSF Borrowing Commitments | N47: Monthly
D49: Proposed New RedZed SMSF Loan
G50: Select Loan Type | I50: Loan Amount | J50: Loan Term in Years | K50: Interest Only Term | L50: Interest Rate
E51: New RedZed Loan | H51: =HYPERLINK("#"&ADDRESS(ROW(),COLUMN()-1),CHAR(128)) -> € | I51: 0 | N51: =Tables!B387 -> 0
J54: Limit | K54: Financier
D55: Existing SMSF Loans | E55: Loan 1 | J55: 0 | N55: 0
E56: Loan 2 | J56: 0 | N56: 0
E57: Loan 3 | J57: 0 | N57: 0
J59: Limit | K59: Financier
D60: Other Loan/Liability Limits if any | E60: eg - Margin Loan | J60: 0 | N60: 0
D64: Total Monthly Commitments (inclusive of repayment buffering) | N64: ='Serviceability Calc'!G23 -> 0
K66: DSR
G67: SMSF Fund Only Debt Servicing Ratio | N67: =IFERROR(IF(N51>0,'Serviceability Calc'!G25,0),0) -> 0
G68: DSR must be >1.00
D79: SMSF Fund + Member Servicing Level | G79: Household | I79: Proposed Monthly Contribution | J79: Available Monthly Contribution
G80: Household 1 | I80: =Tables!B369 -> 0 | J80: =IF(Tables!B367<0,0,Tables!B367) -> 0 | N80: =Tables!B374 -> 0
G81: Household 2 | I81: =Tables!C369 -> 0 | J81: =IF(Tables!C367<0,0,Tables!C367) -> 0 | N81: =Tables!C374 -> 0
G82: Household 3 | I82: =Tables!D369 -> 0 | J82: =IF(Tables!D367<0,0,Tables!D367) -> 0 | N82: =Tables!D374 -> 0
G83: Household 4 | I83: =Tables!E369 -> 0 | J83: =IF(Tables!E367<0,0,Tables!E367) -> 0 | N83: =Tables!E374 -> 0
D84: Member Additional Contributions
D86: Serviceability has now been assessed using the proosed additional member contributions as detailed in the Member Level Serviceability Cal worksheet.
N88: (DSR)
G89: SMSF + Member Debt Servicing Ratio | K89: Fail | N89: =IFERROR(IF(Tables!F368,'Serviceability Calc'!J24,"N/A"),0) -> 0
G90: SMSF + Member Level Servicing DSR must be > 1.10
D92: I, the Introducer, confirm that reasonable enquiries about the applicant(s) current and ongoing financial situation have been undertaken and are reflected in the figures entered into this calculation. Where required the member(s) have been given sufficient time to consider the declared monthly living expenses amount which has been derived following due consideration.
D98: This Serviceability Calculator is intended as a guide only and no loan approval can be assumed on the basis of the results of this calculator. All applications remain subject to the normal credit and approval criteria of RedZed Lending Solutions Pty Ltd.
O100: ='Version Control'!I1 -> v1.6 250108

Sheet Member Serviceability Calc (hidden)
C3: SMSF Additional Member Contribution
D4: RedZed Lending Solutions Pty Ltd (ACL 311128)
D6: Enter information in the Pink boxes. The grey boxes contain calculated results
E8: =Tables!H324 -> 
D10: Proposed Additional Contributions | G10: in addition to current contributions | Q10: Net Monthly
D12: Enter the additional contribution amount the member is proposing to pay into their SMSF (above current contributions.)
E13: Select Household | G13: Members Income Verification Source
D14: Member 1 | F14: =HYPERLINK("#"&ADDRESS(ROW(),COLUMN()-1),CHAR(128)) -> € | H14: =HYPERLINK("#"&ADDRESS(ROW(),COLUMN()-1),CHAR(128)) -> € | L14: Proposed Additional Monthly Contribution to SMSF | O14: 0 | Q14: =Tables!H384 -> 0
D15: Member 2 | F15: =HYPERLINK("#"&ADDRESS(ROW(),COLUMN()-1),CHAR(128)) -> € | H15: =HYPERLINK("#"&ADDRESS(ROW(),COLUMN()-1),CHAR(128)) -> € | L15: Proposed Additional Monthly Contribution to SMSF | O15: 0 | Q15: =Tables!I384 -> 0
D16: Member 3 | F16: =HYPERLINK("#"&ADDRESS(ROW(),COLUMN()-1),CHAR(128)) -> € | H16: € | L16: Proposed Additional Monthly Contribution to SMSF | O16: 0 | Q16: =Tables!J384 -> 0
D17: Member 4 | F17: =HYPERLINK("#"&ADDRESS(ROW(),COLUMN()-1),CHAR(128)) -> € | H17: € | L17: Proposed Additional Monthly Contribution to SMSF | O17: 0 | Q17: =Tables!K384 -> 0
D18: =IFERROR(IF('Serviceability Calc'!M18>'Serviceability Calc'!L16+'Serviceability Calc'!G3,'Serviceability Calc'!F40,'Serviceability Calc'!F38),"") -> 
D19: Total of All Proposed Additional Contributions | Q19: =SUM(Q14:Q17) -> 0
D20: =IFERROR(IF('Serviceability Calc'!J24 <= 1.1,IF('Serviceability Calc'!O7 > 0.25,'Serviceability Calc'!F30,'Serviceability Calc'!F33),IF('Serviceability Calc'!O7 > 0.25,'Serviceability Calc'!F35,'Serviceability Calc'!F35)),"") -> Fail – your proposed additional contributions are insufficient to meet minimum serviceability requirements
D21: =IFERROR(IF('Serviceability Calc'!J24 <= 1.1,IF('Serviceability Calc'!O7 > 0.25,'Serviceability Calc'!F31,""),IF('Serviceability Calc'!O7 > 0.25,"","")),"") -> 
D23: Member(s) Income Table | L23: Gross Annual | N23: Gross Annual ( post above proposed contribution ) | Q23: Net Monthly
D25: Personal Income
D26: Member 1 | E26: =IF(E14 = 0,"",E14) ->  | L26: 0 | M26: =IF(AND(I26 <> 0,J26 = ""),"Missing Alt/Full Doc Type","") ->  | N26: =IF('Tax Calc'!O7 < 0,0,'Tax Calc'!O7) -> 0 | Q26: =IFERROR(IF('Tax Calc'!M51 < 0,0,'Tax Calc'!M51 ),0) -> 0
D27: Member 2 | E27: =IF(E15 = 0,"",E15) ->  | L27: 0 | M27: =IF(AND(I27 <> 0,J27 = ""),"Missing Alt/Full Doc Type","") ->  | N27: =IF('Tax Calc'!O8 < 0,0,'Tax Calc'!O8) -> 0 | Q27: =IFERROR(IF('Tax Calc'!M52 < 0,0,'Tax Calc'!M52 ),0) -> 0
D28: Member 3 | L28: 0 | M28: =IF(AND(I28 <> 0,J28 = ""),"Missing Alt/Full Doc Type","") ->  | N28: =IF('Tax Calc'!O9 < 0,0,'Tax Calc'!O9) -> 0 | Q28: =IFERROR(IF('Tax Calc'!M53 < 0,0,'Tax Calc'!M53 ),0) -> 0
D29: Member 4 | L29: 0 | M29: =IF(AND(I29 <> 0,J29 = ""),"Missing Alt/Full Doc Type","") ->  | N29: =IF('Tax Calc'!O10 < 0,0,'Tax Calc'!O10) -> 0 | Q29: =IFERROR(IF('Tax Calc'!M54 < 0,0,'Tax Calc'!M54 ),0) -> 0
J31: Enter Source of Income
D32: Member 1 | E32: Other Regular Income (eg – Centrelink/Investments, etc) | L32: 0 | Q32: =L32/12 -> 0
D33: Member 2 | E33: Other Regular Income (eg – Centrelink/Investments, etc) | L33: 0 | Q33: =L33/12 -> 0
D34: Member 3 | E34: Other Regular Income (eg – Centrelink/Investments, etc) | L34: 0 | Q34: =L34/12 -> 0
D35: Member 4 | E35: Other Regular Income (eg – Centrelink/Investments, etc) | L35: 0 | Q35: =L35/12 -> 0
D37: Household 1
D38: Rental Income (non-SMSF) | E38: Commercial – If current lease has > 12 months remaining | L38: 0 | Q38: =L38*0.9/12 -> 0
D39: Rental Income (non-SMSF) | E39: Commercial – If current lease has < 12 months remaining | L39: 0 | Q39: =L39*0.8/12 -> 0
D40: Rental Income (non-SMSF) | E40: Residential Lease | L40: 0 | Q40: =L40*0.85/12 -> 0
D41: Rental Income (non-SMSF) | E41: Short Term Rental (annualised last 6 months average) | L41: 0 | Q41: =L41*0.8/12 -> 0
D44: Household 2
D45: Rental Income (non-SMSF) | E45: Commercial – If current lease has > 12 months remaining | L45: 0 | Q45: =L45*0.9/12 -> 0
D46: Rental Income (non-SMSF) | E46: Commercial – If current lease has < 12 months remaining | L46: 0 | Q46: =L46*0.8/12 -> 0
D47: Rental Income (non-SMSF) | E47: Residential Lease | L47: 0 | Q47: =L47*0.85/12 -> 0
D48: Rental Income (non-SMSF) | E48: Short Term Rental (annualised last 6 months average) | L48: 0 | Q48: =L48*0.8/12 -> 0
D51: Household 3
D52: Rental Income (non-SMSF) | E52: Commercial – If current lease has > 12 months remaining | L52: 0 | Q52: =L52*0.9/12 -> 0
D53: Rental Income (non-SMSF) | E53: Commercial – If current lease has < 12 months remaining | L53: 0 | Q53: =L53*0.8/12 -> 0
D54: Rental Income (non-SMSF) | E54: Residential Lease | L54: 0 | Q54: =L54*0.85/12 -> 0
D55: Rental Income (non-SMSF) | E55: Short Term Rental (annualised last 6 months average) | L55: 0 | Q55: =L55*0.8/12 -> 0
D58: Household 4
D59: Rental Income (non-SMSF) | E59: Commercial – If current lease has > 12 months remaining | L59: 0 | Q59: =L59*0.9/12 -> 0
D60: Rental Income (non-SMSF) | E60: Commercial – If current lease has < 12 months remaining | L60: 0 | Q60: =L60*0.8/12 -> 0
D61: Rental Income (non-SMSF) | E61: Residential Lease | L61: 0 | Q61: =L61*0.85/12 -> 0
D62: Rental Income (non-SMSF) | E62: Short Term Rental (annualised last 6 months average) | L62: 0 | Q62: =L62*0.8/12 -> 0
D66: Total Monthly Net Income Household 1 | Q66: =SUM(Tables!B338,Q38:Q41) -> 0
D67: Total Monthly Net Income Household 2 | Q67: =SUM(Tables!C338,Q45:Q48) -> 0
D68: Total Monthly Net Income Household 3 | Q68: =SUM(Tables!D338,Q52:Q55) -> 0
D69: Total Monthly Net Income Household 4 | Q69: =SUM(Tables!E338,Q59:Q62) -> 0
D72: Monthly Living Expenses
D74: Applicants(s) declared expenses - mandatory | L74: RedZed Living Allowance
D76: Household 1 | E76: Monthly living expenses (ongoing) | L76: Number of adults - household 1
J77: 0 | L77: Number of dependant children - household 1
D79: Household 2 | E79: Monthly living expenses (ongoing) | L79: Number of adults - household 2
J80: 0 | L80: Number of dependant children - household 2
D82: Household 3 | E82: Monthly living expenses (ongoing) | L82: Number of adults - household 3
J83: 0 | L83: Number of dependant children - household 3
D85: Household 4 | E85: Monthly living expenses (ongoing) | L85: Number of adults - household 4
J86: 0 | L86: Number of dependant children - household 4
D92: Available Income Household 1 | Q92: =IF(Tables!B365 <0,0,Tables!B365) -> 0
D93: Available Income Household 2 | Q93: =IF(Tables!C365<0,0,Tables!C365) -> 0
D94: Available Income Household 3 | Q94: =IF(Tables!D365<0,0,Tables!D365) -> 0
D95: Available Income Household 4 | Q95: =IF(Tables!E365<0,0,Tables!E365) -> 0
D97: Commitments | Q97: Monthly
D99: Household 1 | M99: Limit | N99: Financier
D100: Existing Loans (non SMSF) | E100: Loan 1 - Existing Secured | M100: 0 | Q100: 0
E101: Loan 2 - Existing Secured | M101: 0 | Q101: 0
E102: Loan 3 - Existing Secured | M102: 0 | Q102: 0
E103: Loan 4 - Existing Unsecured | M103: 0 | Q103: 0
E104: Loan 5 - Existing Unsecured | M104: 0 | Q104: 0
E105: Loan 6 - Existing Unsecured | M105: 0 | Q105: 0
M107: Total Credit Limits
D108: Credit Cards | M108: 0 | Q108: =M108*3.82% -> 0
D110: Maintenance / On Going Rent | Q110: 0
D112: Other Fixed Monthly Repayments | Q112: 0
D114: Total Monthly Surplus Funds Household 1 (After Buffering) | M114: =Tables!B375 ->  | Q114: =Tables!B367 -> 0
D117: Household 2 | M117: Limit | N117: Financier
D118: Existing Loans (non SMSF) | E118: Loan 1 - Existing Secured | M118: 0 | Q118: 0
E119: Loan 2 - Existing Secured | M119: 0 | Q119: 0
E120: Loan 3 - Existing Secured | M120: 0 | Q120: 0
E121: Loan 4 - Existing Unsecured | M121: 0 | Q121: 0
E122: Loan 5 - Existing Unsecured | M122: 0 | Q122: 0
E123: Loan 6 - Existing Unsecured | M123: 0 | Q123: 0
M125: Total Credit Limits
D126: Credit Cards | M126: 0 | Q126: =M126*3.82% -> 0
Q127: 0
D128: Maintenance / On Going Rent | Q128: 0
D130: Other Fixed Monthly Repayments | Q130: 0
D132: Total Monthly Surplus Funds Household 2 (After Buffering) | M132: =Tables!C375 ->  | Q132: =Tables!C367 -> 0
Q134: 0
D135: Household 3 | M135: Limit | N135: Financier | Q135: 0
D136: Existing Loans (non SMSF) | E136: Loan 1 - Existing Secured | M136: 0 | Q136: 0
E137: Loan 2 - Existing Secured | M137: 0 | Q137: 0
E138: Loan 3 - Existing Secured | M138: 0 | Q138: 0
E139: Loan 4 - Existing Unsecured | M139: 0 | Q139: 0
E140: Loan 5 - Existing Unsecured | M140: 0 | Q140: 0
E141: Loan 6 - Existing Unsecured | M141: 0 | Q141: 0
Q142: 0
M143: Total Credit Limits | Q143: 0
D144: Credit Cards | M144: 0 | Q144: 0
Q145: 0
D146: Maintenance / On Going Rent | Q146: 0
Q147: 0
D148: Other Fixed Monthly Repayments | Q148: 0
D150: Total Monthly Surplus Funds Household 3 (After Buffering) | M150: =Tables!D375 ->  | Q150: =Tables!D367 -> 0
Q152: 0
D153: Household 4 | M153: Limit | N153: Financier
D154: Existing Loans (non SMSF) | E154: Loan 1 - Existing Secured | M154: 0 | Q154: 0
E155: Loan 2 - Existing Secured | M155: 0 | Q155: 0
E156: Loan 3 - Existing Secured | M156: 0 | Q156: 0
E157: Loan 4 - Existing Unsecured | M157: 0 | Q157: 0
E158: Loan 5 - Existing Unsecured | M158: 0 | Q158: 0
E159: Loan 6 - Existing Unsecured | M159: 0 | Q159: 0
M161: Total Credit Limits | P161: 0
D162: Credit Cards | M162: 0 | N162: (@3.82%) | P162: 0 | Q162: =M162*3.82% -> 0
P163: 0
D164: Maintenance / On Going Rent | P164: 0 | Q164: 0
D166: Other Fixed Monthly Repayments | Q166: 0
D168: Total Monthly Surplus Funds Household 4 (After Buffering) | M168: =Tables!E375 ->  | Q168: =Tables!E367 -> 0
N178: SMSF Debt Servicing Ratio | Q178: (DSR)
D179: This Serviceability Calculator is intended as a guide only and no loan approval can be assumed on the basis of the results of this calculator. All applications remain subject to the normal credit and approval criteria of RedZed Lending Solutions Pty Ltd. | N179: Fail | Q179: =IFERROR('Serviceability Calc'!G25,0) -> 0
N181: For SMSF Level Servicing DSR must be >1.00
Q200: DSR
J201: SMSF + Member Debt Servicing Ratio | N201: Fail | Q201: =IFERROR(IF(Tables!F368,'Serviceability Calc'!J24,"N/A"),0) -> 0
J202: SMSF + Member Level Servicing DSR must be > 1.10
D206: I, the Introducer, confirm that reasonable enquiries about the member(s) current and ongoing financial situation have been undertaken and are reflected in the figures entered into this calculation. The member(s) have been given sufficient time to consider the declared monthly living expenses amount which has been derived following due consideration.
R214: ='Version Control'!I1 -> v1.6 250108

Sheet HEM (hidden)
A1: Income Range ($) | B1: Single Adult | C1: Single Adult +1 | D1: Single Adult +2 | E1: Single Adult +3 | F1: Single Adult +4 | G1: Single Adult +5 | H1: Single Adult +6 | I1: Couple | J1: Couple +1 | K1: Couple +2 | L1: Couple +3 | M1: Couple +4 | N1: Couple +5 | O1: Couple +6
A2: 0 - 26,000 | B2: 1328 | C2: 1851 | D2: 2350 | E2: 2912 | F2: 3344 | G2: 4124 | H2: 4872 | I2: 2579 | J2: 2995 | K2: 3340 | L2: 3739 | M2: 4304 | N2: 4645 | O2: 4987
A3: 26,001 - 39,000 | B3: 1400 | C3: 1851 | D3: 2350 | E3: 2912 | F3: 3344 | G3: 4124 | H3: 4872 | I3: 2579 | J3: 2995 | K3: 3340 | L3: 3739 | M3: 4304 | N3: 4645 | O3: 4987
A4: 39,001 - 52,000 | B4: 1463 | C4: 1916 | D4: 2414 | E4: 2912 | F4: 3344 | G4: 4124 | H4: 4872 | I4: 2643 | J4: 2995 | K4: 3340 | L4: 3739 | M4: 4304 | N4: 4645 | O4: 4987
A5: 52,001 - 64,000 | B5: 1586 | C5: 2041 | D5: 2538 | E5: 3036 | F5: 3472 | G5: 4124 | H5: 4872 | I5: 2765 | J5: 3117 | K5: 3463 | L5: 3739 | M5: 4304 | N5: 4645 | O5: 4987
A6: 64,001 - 77,000 | B6: 1757 | C6: 2216 | D6: 2713 | E6: 3209 | F6: 3651 | G6: 4124 | H6: 4872 | I6: 2937 | J6: 3288 | K6: 3635 | L6: 3910 | M6: 4304 | N6: 4645 | O6: 4987
A7: 77,001 - 103,000 | B7: 2014 | C7: 2478 | D7: 2974 | E7: 3469 | F7: 3919 | G7: 4395 | H7: 4872 | I7: 3194 | J7: 3545 | K7: 3894 | L7: 4167 | M7: 4561 | N7: 4902 | O7: 5244
A8: 103,001 - 129,000 | B8: 2393 | C8: 2864 | D8: 3358 | E8: 3852 | F8: 4313 | G8: 4794 | H8: 5274 | I8: 3572 | J8: 3922 | K8: 4273 | L8: 4546 | M8: 4939 | N8: 5280 | O8: 5622
A9: 129,001 - 155,000 | B9: 2717 | C9: 3195 | D9: 3688 | E9: 4180 | F9: 4652 | G9: 5135 | H9: 5619 | I9: 3897 | J9: 4246 | K9: 4599 | L9: 4870 | M9: 5263 | N9: 5604 | O9: 5946
A10: 155,001 - 180,000 | B10: 3070 | C10: 3556 | D10: 4046 | E10: 4537 | F10: 5020 | G10: 5507 | H10: 5994 | I10: 4250 | J10: 4598 | K10: 4954 | L10: 5223 | M10: 5616 | N10: 5957 | O10: 6299
A11: 180,001 - 206,000 | B11: 3276 | C11: 3766 | D11: 4255 | E11: 4745 | F11: 5235 | G11: 5724 | H11: 6214 | I11: 4456 | J11: 4804 | K11: 5160 | L11: 5429 | M11: 5822 | N11: 6163 | O11: 6504
A12: 206,001 - 258,000 | B12: 3558 | C12: 4053 | D12: 4542 | E12: 5030 | F12: 5528 | G12: 6021 | H12: 6513 | I12: 4738 | J12: 5085 | K12: 5443 | L12: 5711 | M12: 6103 | N12: 6445 | O12: 6786
A13: 258,001 - 322,000 | B13: 4052 | C13: 4557 | D13: 5043 | E13: 5529 | F13: 6043 | G13: 6541 | H13: 7039 | I13: 5232 | J13: 5578 | K13: 5939 | L13: 6205 | M13: 6597 | N13: 6938 | O13: 7279
A14: 322,001 - 386,000 | B14: 4793 | C14: 5313 | D14: 5796 | E14: 6278 | F14: 6815 | G14: 7321 | H14: 7826 | I14: 5973 | J14: 6317 | K14: 6683 | L14: 6946 | M14: 7337 | N14: 7678 | O14: 8019
A15: 386,001 - 644,000 | B15: 4885 | C15: 5407 | D15: 5889 | E15: 6371 | F15: 6911 | G15: 7418 | H15: 7925 | I15: 6065 | J15: 6409 | K15: 6775 | L15: 7038 | M15: 7429 | N15: 7770 | O15: 8111
A19: Income Range lookup | B19: Row Offset Value | D19: Dependents/Household Number | F19: 1 | G19: 2 | H19: 3 | I19: 4 | J19: 5 | K19: 6 | L19: 7
A20: 26001 | B20: 1 | D20: 0 | F20: 0 | G20: 7 | H20: 13 | I20: 13 | J20: 13 | K20: 13 | L20: 13
A21: 39001 | B21: 2 | D21: 1 | F21: 1 | G21: 8 | H21: 13 | I21: 13 | J21: 13 | K21: 13 | L21: 13
A22: 52001 | B22: 3 | D22: 2 | F22: 2 | G22: 9 | H22: 13 | I22: 13 | J22: 13 | K22: 13 | L22: 13
A23: 64001 | B23: 4 | D23: 3 | F23: 3 | G23: 10 | H23: 13 | I23: 13 | J23: 13 | K23: 13 | L23: 13
A24: 77001 | B24: 5 | D24: 4 | F24: 4 | G24: 11 | H24: 13 | I24: 13 | J24: 13 | K24: 13 | L24: 13
A25: 103001 | B25: 6 | D25: 5 | F25: 5 | G25: 12 | H25: 13 | I25: 13 | J25: 13 | K25: 13 | L25: 13
A26: 129001 | B26: 7 | D26: 6 | F26: 6 | G26: 13 | H26: 13 | I26: 13 | J26: 13 | K26: 13 | L26: 13
A27: 155001 | B27: 8 | D27: 7 | F27: 13 | G27: 13 | H27: 13 | I27: 13 | J27: 13 | K27: 13 | L27: 13
A28: 180001 | B28: 9 | D28: 8 | F28: 13 | G28: 13 | H28: 13 | I28: 13 | J28: 13 | K28: 13 | L28: 13
A29: 206001 | B29: 10 | D29: 9 | F29: 13 | G29: 13 | H29: 13 | I29: 13 | J29: 13 | K29: 13 | L29: 13
A30: 258001 | B30: 11 | D30: 10 | F30: 13 | G30: 13 | H30: 13 | I30: 13 | J30: 13 | K30: 13 | L30: 13
A31: 322001 | B31: 12 | D31: 11 | F31: 13 | G31: 13 | H31: 13 | I31: 13 | J31: 13 | K31: 13 | L31: 13
A32: 386001 | B32: 13 | D32: 12 | F32: 13 | G32: 13 | H32: 13 | I32: 13 | J32: 13 | K32: 13 | L32: 13
D39: Household 1 | H39: Household 2
D40: Gross Income | F40: =IF(EXACT(Serviceability!E13,D39),Serviceability!I13,0)+IF(EXACT(Serviceability!E14, D39),Serviceability!I14,0)+IF(EXACT(Serviceability!E15, D39),Serviceability!I15,0)+IF(EXACT(Serviceability!E16, D39),Serviceability!I16,0)+IF(EXACT(Serviceability!H19, D39),Serviceability!N19*12,0)+IF(EXACT(Serviceability!H20, D39),Serviceability!N20*12,0)+IF(EXACT(Serviceability!H21, D39),Serviceability!N21*12,0)+IF(EXACT(Serviceability!H22, D39),Serviceability!N22*12,0) -> 0 | H40: Gross Income | J40: =IF(EXACT(Serviceability!E13, H39),Serviceability!I13,0)+IF(EXACT(Serviceability!E14,H39),Serviceability!I14,0)+IF(EXACT(Serviceability!E15,H39),Serviceability!I15,0)+IF(EXACT(Serviceability!E16,H39),Serviceability!I16,0)+IF(EXACT(Serviceability!H19, H39),Serviceability!N19*12,0)+IF(EXACT(Serviceability!H20, H39),Serviceability!N20*12,0)+IF(EXACT(Serviceability!H21, H39),Serviceability!N21*12,0)+IF(EXACT(Serviceability!H22, H39),Serviceability!N22*12,0) -> 0
D41: Single/Couple | F41: =+Serviceability!$I$42 -> 0 | H41: Single/Couple | J41: =Serviceability!I44 -> 0
D42: Dependents | F42: =+Serviceability!$I$43 -> 0 | H42: Dependents | J42: =Serviceability!I45 -> 0
D43: HEM Row Offset Value | F43: =IFERROR(VLOOKUP(F40,HEM!$A$20:$B$32,2,TRUE),0) -> 0 | H43: HEM Row Offset Value | J43: =IFERROR(VLOOKUP(J40,HEM!$A$20:$B$32,2,TRUE),0) -> 0
D44: HEM Column Offset Value | F44: =OFFSET($E$20,F42,F41) -> 0 | H44: HEM Column Offset Value | J44: =OFFSET($E$20,J42,J41) -> 0
D45: HEM Starting Value | F45: =OFFSET(B2,0,0) -> 1328 | H45: HEM Starting Value | J45: =OFFSET(B2,0,0) -> 1328
D46: HEM Min Living Expense | F46: =IF(F40=0, 0, OFFSET($B$2,F43,F44)) -> 0 | H46: HEM Min Living Expense | J46: =IF(J40=0,0,OFFSET($B$2,J43,J44)) -> 0
D49: Household 1 | H49: Household 2 | L49: Household 3 | P49: Household 4
D50: Gross Income | F50: =IF(EXACT('Member Serviceability Calc'!E26,D49),'Member Serviceability Calc'!L26,0)+IF(EXACT('Member Serviceability Calc'!E26, D49),'Member Serviceability Calc'!Q32*12,0)+IF(EXACT('Member Serviceability Calc'!E27,D49),'Member Serviceability Calc'!L27,0)+IF(EXACT('Member Serviceability Calc'!E27, D49),'Member Serviceability Calc'!Q33*12,0)+IF(EXACT('Member Serviceability Calc'!E28,D49),'Member Serviceability Calc'!L28,0)+IF(EXACT('Member Serviceability Calc'!E28, D49),'Member Serviceability Calc'!Q34*12,0)+IF(EXACT('Member Serviceability Calc'!E29,D49),'Member Serviceability Calc'!L29,0)+IF(EXACT('Member Serviceability Calc'!E29, D49),'Member Serviceability Calc'!Q35*12,0) -> 0 | H50: Gross Income | J50: =IF(EXACT('Member Serviceability Calc'!E26,H49),'Member Serviceability Calc'!L26,0)+IF(EXACT('Member Serviceability Calc'!E26, H49),'Member Serviceability Calc'!Q32*12,0)+IF(EXACT('Member Serviceability Calc'!E27,H49),'Member Serviceability Calc'!L27,0)+IF(EXACT('Member Serviceability Calc'!E27, H49),'Member Serviceability Calc'!Q33*12,0)+IF(EXACT('Member Serviceability Calc'!E28,H49),'Member Serviceability Calc'!L28,0)+IF(EXACT('Member Serviceability Calc'!E28, H49),'Member Serviceability Calc'!Q34*12,0)+IF(EXACT('Member Serviceability Calc'!E29,H49),'Member Serviceability Calc'!L29,0)+IF(EXACT('Member Serviceability Calc'!E29, H49),'Member Serviceability Calc'!Q35*12,0) -> 0 | L50: Gross Income | N50: =IF(EXACT('Member Serviceability Calc'!E26,L49),'Member Serviceability Calc'!L26,0)+IF(EXACT('Member Serviceability Calc'!E26, L49),'Member Serviceability Calc'!Q32*12,0)+IF(EXACT('Member Serviceability Calc'!E27,L49),'Member Serviceability Calc'!L27,0)+IF(EXACT('Member Serviceability Calc'!E27, L49),'Member Serviceability Calc'!Q33*12,0)+IF(EXACT('Member Serviceability Calc'!E28,L49),'Member Serviceability Calc'!L28,0)+IF(EXACT('Member Serviceability Calc'!E28, L49),'Member Serviceability Calc'!Q34*12,0)+IF(EXACT('Member Serviceability Calc'!E29,L49),'Member Serviceability Calc'!L29,0)+IF(EXACT('Member Serviceability Calc'!E29, L49),'Member Serviceability Calc'!Q35*12,0) -> 0 | P50: Gross Income | R50: =IF(EXACT('Member Serviceability Calc'!E26,P49),'Member Serviceability Calc'!L26,0)+IF(EXACT('Member Serviceability Calc'!E26, P49),'Member Serviceability Calc'!Q32*12,0)+IF(EXACT('Member Serviceability Calc'!E27,P49),'Member Serviceability Calc'!L27,0)+IF(EXACT('Member Serviceability Calc'!E27, P49),'Member Serviceability Calc'!Q33*12,0)+IF(EXACT('Member Serviceability Calc'!E28,P49),'Member Serviceability Calc'!L28,0)+IF(EXACT('Member Serviceability Calc'!E28, P49),'Member Serviceability Calc'!Q34*12,0)+IF(EXACT('Member Serviceability Calc'!E29,P49),'Member Serviceability Calc'!L29,0)+IF(EXACT('Member Serviceability Calc'!E29, P49),'Member Serviceability Calc'!Q35*12,0) -> 0
D51: Single/Couple | F51: =+'Member Serviceability Calc'!O76 -> 0 | H51: Single/Couple | J51: =+'Member Serviceability Calc'!O79 -> 0 | L51: Single/Couple | N51: =+'Member Serviceability Calc'!O82 -> 0 | P51: Single/Couple | R51: =+'Member Serviceability Calc'!O85 -> 0
D52: Dependents | F52: =+'Member Serviceability Calc'!O77 -> 0 | H52: Dependents | J52: =+'Member Serviceability Calc'!O80 -> 0 | L52: Dependents | N52: =+'Member Serviceability Calc'!O83 -> 0 | P52: Dependents | R52: =+'Member Serviceability Calc'!O86 -> 0
D53: HEM Row Offset Value | F53: =IFERROR(VLOOKUP(F50,HEM!$A$20:$B$32,2,TRUE),0) -> 0 | H53: HEM Row Offset Value | J53: =IFERROR(VLOOKUP(J50,HEM!$A$20:$B$32,2,TRUE),0) -> 0 | L53: HEM Row Offset Value | N53: =IFERROR(VLOOKUP(N50,HEM!$A$20:$B$32,2,TRUE),0) -> 0 | P53: HEM Row Offset Value | R53: =IFERROR(VLOOKUP(R50,HEM!$A$20:$B$32,2,TRUE),0) -> 0
D54: HEM Column Offset Value | F54: =OFFSET($E$20,F52,F51) -> 0 | H54: HEM Column Offset Value | J54: =OFFSET($E$20,J52,J51) -> 0 | L54: HEM Column Offset Value | N54: =OFFSET($E$20,N52,N51) -> 0 | P54: HEM Column Offset Value | R54: =OFFSET($E$20,R52,R51) -> 0
D55: HEM Starting Value | F55: =OFFSET(B2,0,0) -> 1328 | H55: HEM Starting Value | J55: =OFFSET(B2,0,0) -> 1328 | L55: HEM Starting Value | N55: =OFFSET(B2,0,0) -> 1328 | P55: HEM Starting Value | R55: =OFFSET(B2,0,0) -> 1328
D56: HEM Min Living Expense | F56: =IF(F50=0, 0, OFFSET($B$2,F53,F54)) -> 0 | H56: HEM Min Living Expense | J56: =IF(J50=0,0,OFFSET($B$2,J53,J54)) -> 0 | L56: HEM Min Living Expense | N56: =IF(N50=0, 0, OFFSET($B$2,N53,N54)) -> 0 | P56: HEM Min Living Expense | R56: =IF(R50=0,0,OFFSET($B$2,R53,R54)) -> 0

Sheet Tables (hidden)
A2: Tax
G3: Flood Levy
A4: Wages Over | B4: Not to Exceed | C4: Tax Rate | G4: Taxable income | H4: Flood levy on this income
A5: 0 | B5: 18200 | C5: 0 | G5: $0 to $50,000 | H5: Nil | I5: 0 | J5: 50000 | K5: 0
A6: =B5+1 -> 18201 | B6: 45000 | C6: 0.16 | D6: =D5+C5*(B5-A5) -> 0 | G6: $50,001 to $100,000 | H6: Half a cent for each $1 over $50,000 | I6: 50001 | J6: 100000 | K6: 0 | L6: =(J6-J5)*K6 -> 0
A7: =B6+1 -> 45001 | B7: 135000 | C7: 0.3 | D7: =ROUNDUP(D6+C6*(B6-A6),0) -> 4288 | G7: Over $100,000 | H7: $250 plus 1c for each $1 over $100,000 | I7: =J6+1 -> 100001 | K7: 0
A8: =B7+1 -> 135001 | B8: 190000 | C8: 0.37 | D8: =ROUNDUP(D7+C7*(B7-A7),0) -> 31288
A9: =B8+1 -> 190001 | C9: 0.45 | D9: =ROUNDUP(D8+C8*(B8-A8),0) -> 51638
A12: Medicare Levy
G13: Taxable income | H13: Tax on this income
A14: 0 | B14: 16284 | C14: 0 | E14: not currently used | G14: 0 - $18,200 | H14: Nil
A15: 16284 | B15: 17604 | C15: 0.2 | G15: $18,201 - $37,000 | H15: 19c for each $1 over $18,200
A16: 17604+ | C16: 0.02 | G16: $37,001 - $90,000 | H16: $3,572 plus 32.5c for each $1 over $37,000
G17: $90,001 - $180,000 | H17: $17,547 plus 37c for each $1 over $87,000
G18: $180,001 and over | H18: $54,547 plus 45c for each $1 over $180,000
A20: Company Tax
A22: Rate | B22: 0.275
A28: APR Buffer | B28: 0.02
A29: Minimum Rate | B29: 0.07
A31: RedZed Loan Applied For: Repayment With Buffer | C31: Buffered % | D31: Minimum % | E31: Rate % | F31: Buffer % | G31: Buffered % | H31: Total Term | I31: Interest Only Term | J31: Net Term | K31: Amount
A32: Buffered Loan 1 | B32: =IF(Serviceability!J56=0,0,-PMT((D32)/12,J32*12,Serviceability!I56)) -> 0 | C32: =G32 -> 0.02 | D32: =IF(C32>=$B$29,C32,$B$29) -> 0.07 | E32: =Serviceability!L56 -> 0 | F32: =$B$28 -> 0.02 | G32: =E32+F32 -> 0.02 | H32: =Serviceability!J56 -> 0 | I32: =Serviceability!K56 -> 0 | J32: =H32-I32 -> 0 | K32: =Serviceability!I56 -> 0
A33: Buffered Loan 2 | B33: =IF(Serviceability!J57=0,0,-PMT((D33)/12,J33*12,Serviceability!I57)) -> 0 | C33: =G33 -> 0.02 | D33: =IF(C33>=$B$29,C33,$B$29) -> 0.07 | E33: =Serviceability!L57 -> 0 | F33: =$B$28 -> 0.02 | G33: =E33+F33 -> 0.02 | H33: =Serviceability!J57 -> 0 | I33: =Serviceability!K57 -> 0 | J33: =H33-I33 -> 0
A34: Buffered Loan 3 | B34: =IF(Serviceability!J58=0,0,-PMT((D34)/12,J34*12,Serviceability!I58)) -> 0 | C34: =G34 -> 0.02 | D34: =IF(C34>=$B$29,C34,$B$29) -> 0.07 | E34: =Serviceability!L58 -> 0 | F34: =$B$28 -> 0.02 | G34: =E34+F34 -> 0.02 | H34: =Serviceability!J58 -> 0 | I34: =Serviceability!K58 -> 0 | J34: =H34-I34 -> 0 | K34: =Serviceability!I58 -> 0
A37: Existing Loan: Repayment With Buffer
A38: Buffered Loan 1 | B38: 0.2 | C38: =Serviceability!N61*(1+Tables!B38) -> 0 | G38: =Serviceability!N61 -> 0 | H38: =Serviceability!E61 -> Loan 1 - Existing Secured
A39: Buffered Loan 2 | B39: 0.2 | C39: =Serviceability!N62*(1+Tables!B39) -> 0 | G39: =Serviceability!N62 -> 0 | H39: =Serviceability!E62 -> Loan 2 - Existing Secured
A42: Additional Fees for Serviceability
A43: Fees - Loan 1 | B43: 15 | C43: =IF(Serviceability!N56=0,0,15) -> 0 | D43: Monthly Account Keeping Fee Resi
A44: Fees - Loan 2 | B44: 15 | C44: =IF(Serviceability!N57=0,0,15) -> 0 | D44: Monthly Account Keeping Fee Resi
A45: Fees - Loan 3 | B45: 15 | C45: =IF(Serviceability!N58=0,0,15) -> 0 | D45: Monthly Account Keeping Fee Resi
A49: Column1 | B49: Single Adult | C49: Single Adult + 1 Dependant | D49: Single Adult + 2 Dependants | E49: Single Adult + 3 Dependants | F49: Single Adult + 4 Dependants | G49: Single Adult + 5 Dependants | H49: Single Adult + 6 Dependants | I49: Couple | J49: Couple + 1 Dependant | K49: Couple + 2 Dependants | L49: Couple + 3 Dependants | M49: Couple + 4 Dependants | N49: Couple + 5 Dependants | O49: Couple + 6 Dependants
A50: Income Range ($) | B50: Proposed Benchmark | C50: Proposed Benchmark | D50: Proposed Benchmark | E50: Proposed Benchmark | F50: Proposed Benchmark | G50: Proposed Benchmark | H50: Proposed Benchmark | I50: Proposed Benchmark | J50: Proposed Benchmark | K50: Proposed Benchmark | L50: Proposed Benchmark | M50: Proposed Benchmark | N50: Proposed Benchmark | O50: Proposed Benchmark
A51: 0 - 26,000 | B51: 1328 | C51: 1851 | D51: 2350 | E51: 2912 | F51: 3344 | G51: 4124 | H51: 4872 | I51: 2579 | J51: 2995 | K51: 3340 | L51: 3739 | M51: 4304 | N51: 4645 | O51: 4987
A52: 26,001 - 39,000 | B52: 1400 | C52: 1851 | D52: 2350 | E52: 2912 | F52: 3344 | G52: 4124 | H52: 4872 | I52: 2579 | J52: 2995 | K52: 3340 | L52: 3739 | M52: 4304 | N52: 4645 | O52: 4987
A53: 39,001 - 52,000 | B53: 1463 | C53: 1916 | D53: 2414 | E53: 2912 | F53: 3344 | G53: 4124 | H53: 4872 | I53: 2643 | J53: 2995 | K53: 3340 | L53: 3739 | M53: 4304 | N53: 4645 | O53: 4987
A54: 52,001 - 64,000 | B54: 1586 | C54: 2041 | D54: 2538 | E54: 3036 | F54: 3472 | G54: 4124 | H54: 4872 | I54: 2765 | J54: 3117 | K54: 3463 | L54: 3739 | M54: 4304 | N54: 4645 | O54: 4987
A55: 64,001 - 77,000 | B55: 1757 | C55: 2216 | D55: 2713 | E55: 3209 | F55: 3651 | G55: 4124 | H55: 4872 | I55: 2937 | J55: 3288 | K55: 3635 | L55: 3910 | M55: 4304 | N55: 4645 | O55: 4987
A56: 77,001 - 103,000 | B56: 2014 | C56: 2478 | D56: 2974 | E56: 3469 | F56: 3919 | G56: 4395 | H56: 4872 | I56: 3194 | J56: 3545 | K56: 3894 | L56: 4167 | M56: 4561 | N56: 4902 | O56: 5244
A57: 103,001 - 129,000 | B57: 2393 | C57: 2864 | D57: 3358 | E57: 3852 | F57: 4313 | G57: 4794 | H57: 5274 | I57: 3572 | J57: 3922 | K57: 4273 | L57: 4546 | M57: 4939 | N57: 5280 | O57: 5622
A58: 129,001 - 155,000 | B58: 2717 | C58: 3195 | D58: 3688 | E58: 4180 | F58: 4652 | G58: 5135 | H58: 5619 | I58: 3897 | J58: 4246 | K58: 4599 | L58: 4870 | M58: 5263 | N58: 5604 | O58: 5946
A59: 155,001 - 180,000 | B59: 3070 | C59: 3556 | D59: 4046 | E59: 4537 | F59: 5020 | G59: 5507 | H59: 5994 | I59: 4250 | J59: 4598 | K59: 4954 | L59: 5223 | M59: 5616 | N59: 5957 | O59: 6299
A60: 180,001 - 206,000 | B60: 3276 | C60: 3766 | D60: 4255 | E60: 4745 | F60: 5235 | G60: 5724 | H60: 6214 | I60: 4456 | J60: 4804 | K60: 5160 | L60: 5429 | M60: 5822 | N60: 6163 | O60: 6504
A61: 206,001 - 258,000 | B61: 3558 | C61: 4053 | D61: 4542 | E61: 5030 | F61: 5528 | G61: 6021 | H61: 6513 | I61: 4738 | J61: 5085 | K61: 5443 | L61: 5711 | M61: 6103 | N61: 6445 | O61: 6786
A62: 258,001 - 322,000 | B62: 4052 | C62: 4557 | D62: 5043 | E62: 5529 | F62: 6043 | G62: 6541 | H62: 7039 | I62: 5232 | J62: 5578 | K62: 5939 | L62: 6205 | M62: 6597 | N62: 6938 | O62: 7279
A63: 322,001 - 386,000 | B63: 4793 | C63: 5313 | D63: 5796 | E63: 6278 | F63: 6815 | G63: 7321 | H63: 7826 | I63: 5973 | J63: 6317 | K63: 6683 | L63: 6946 | M63: 7337 | N63: 7678 | O63: 8019
A64: 386,001 - 644,000 | B64: 4885 | C64: 5407 | D64: 5889 | E64: 6371 | F64: 6911 | G64: 7418 | H64: 7925 | I64: 6065 | J64: 6409 | K64: 6775 | L64: 7038 | M64: 7429 | N64: 7770 | O64: 8111
A70: Household 1
A71: Household 2 | B71: Monthly Income | F71: Other Income | H71: Company
B73: Household 1 | C73: Household 2 | F73: Household 1 | G73: Household 2 | I73: Always Household 1
A74: Applicant / Guarantor 1 | B74: =IF(EXACT(Serviceability!E13, "Household 1"),Serviceability!I13,0) -> 0 | C74: =IF(EXACT(Serviceability!E13, "Household 2"),Serviceability!I13,0) -> 0 | E74: Applicant / Guarantor 1 | F74: =IF(EXACT(Serviceability!H19, "Household 1"),Serviceability!N19,0) -> 0 | G74: =IF(EXACT(Serviceability!H19, "Household 2"),Serviceability!N19,0) -> 0 | H74: Applicant / Guarantor 1 | I74: =Serviceability!I30 -> 0
A75: Applicant / Guarantor 2 | B75: =IF(EXACT(Serviceability!E14, "Household 1"),Serviceability!I14,0) -> 0 | C75: =IF(EXACT(Serviceability!E14, "Household 2"),Serviceability!I14,0) -> 0 | E75: Applicant / Guarantor 2 | F75: =IF(EXACT(Serviceability!H20, "Household 1"),Serviceability!N20,0) -> 0 | G75: =IF(EXACT(Serviceability!H20, "Household 2"),Serviceability!N20,0) -> 0
A76: Applicant / Guarantor 3 | B76: =IF(EXACT(Serviceability!E15, "Household 1"),Serviceability!I15,0) -> 0 | C76: =IF(EXACT(Serviceability!E15, "Household 2"),Serviceability!I15,0) -> 0 | E76: Applicant / Guarantor 3 | F76: =IF(EXACT(Serviceability!H21, "Household 1"),Serviceability!N21,0) -> 0 | G76: =IF(EXACT(Serviceability!H21, "Household 2"),Serviceability!N21,0) -> 0
A77: Applicant / Guarantor 4 | B77: =IF(EXACT(Serviceability!E16, "Household 1"),Serviceability!I16,0) -> 0 | C77: =IF(EXACT(Serviceability!E16, "Household 2"),Serviceability!I16,0) -> 0 | E77: Applicant / Guarantor 4 | F77: =IF(EXACT(Serviceability!H22, "Household 1"),Serviceability!N22,0) -> 0 | G77: =IF(EXACT(Serviceability!H22, "Household 2"),Serviceability!N22,0) -> 0
A78: Applicant Totals | B78: =SUM(B74:B77,F78,I74) -> 0 | C78: =SUM(C74:C77,G78) -> 0 | E78: Applicant Totals | F78: =SUM(F74:F77)*12 -> 0 | G78: =SUM(G74:G77)*12 -> 0
A80: Adults - household | C80: =IF(C78<=59999,"test",IF(B3>93,"A",IF(B3>89,"A-",IF(B3>87,"B+",IF(B3>83,"B",IF(B3>79,"B-", IF(B3>77,"C+",IF(B3>73,"C",IF(B3>69,"C-",IF(B3>57,"D+",IF(B3>53,"D",IF(B3>49,"D-","")))))))))))) -> test
A81: Adults - household - new
A82: Dependant children - household
A84: Adult | B84: =Serviceability!I42 -> 0 | C84: =Serviceability!I44 -> 0 | E84: =IF(Serviceability!I42>2, "Please call 1300 722 462 for assistance with calculation "," ") ->  | N84: offset amount
A85: Dependent | B85: =Serviceability!I43 -> 0 | C85: =Serviceability!I45 -> 0 | E85: =IF(Serviceability!I44>2, "Please call 1300 722 462 for assistance with calculation "," ") -> 
B86: ="Adult-" & B84 & ",Dependents-" & B85 -> Adult-0,Dependents-0 | C86: ="Adult-" & C84 & ",Dependents-" & C85 -> Adult-0,Dependents-0
A88: LookupKey | B88: Household | C88: Income Range | D88: Living Expense
A89: =B89 & ":" & C89 -> Adult-1,Dependents-0:0 - 26,000 | B89: Adult-1,Dependents-0 | C89: 0 - 26,000 | D89: 1328
A90: =B90 & ":" & C90 -> Adult-1,Dependents-0:26,001 - 39,000 | B90: Adult-1,Dependents-0 | C90: 26,001 - 39,000 | D90: 1400
A91: Adult-1,Dependents-0:39,001 - 52,000 | B91: Adult-1,Dependents-0 | C91: 39,001 - 52,000 | D91: 1463
A92: Adult-1,Dependents-0:52,001 - 64,000 | B92: Adult-1,Dependents-0 | C92: 52,001 - 64,000 | D92: 1586
A93: Adult-1,Dependents-0:64,001 - 77,000 | B93: Adult-1,Dependents-0 | C93: 64,001 - 77,000 | D93: 1757
A94: Adult-1,Dependents-0:77,001 - 103,000 | B94: Adult-1,Dependents-0 | C94: 77,001 - 103,000 | D94: 2014
A95: Adult-1,Dependents-0:103,001 - 129,000 | B95: Adult-1,Dependents-0 | C95: 103,001 - 129,000 | D95: 2393
A96: Adult-1,Dependents-0:129,001 - 155,000 | B96: Adult-1,Dependents-0 | C96: 129,001 - 155,000 | D96: 2717
A97: Adult-1,Dependents-0:155,001 - 180,000 | B97: Adult-1,Dependents-0 | C97: 155,001 - 180,000 | D97: 3070
A98: Adult-1,Dependents-0:180,001 - 206,000 | B98: Adult-1,Dependents-0 | C98: 180,001 - 206,000 | D98: 3276
A99: Adult-1,Dependents-0:206,001 - 258,000 | B99: Adult-1,Dependents-0 | C99: 206,001 - 258,000 | D99: 3558
A100: Adult-1,Dependents-0:258,001 - 322,000 | B100: Adult-1,Dependents-0 | C100: 258,001 - 322,000 | D100: 4052
A101: Adult-1,Dependents-0:322,001 - 386,000 | B101: Adult-1,Dependents-0 | C101: 322,001 - 386,000 | D101: 4793
A102: Adult-1,Dependents-0:386,001 - 644,000 | B102: Adult-1,Dependents-0 | C102: 386,001 - 644,000 | D102: 4885
A104: Adult-1,Dependents-1:0 - 26,000 | B104: Adult-1,Dependents-1 | C104: 0 - 26,000 | D104: 1851
A105: Adult-1,Dependents-1:26,001 - 39,000 | B105: Adult-1,Dependents-1 | C105: 26,001 - 39,000 | D105: 1851
A106: Adult-1,Dependents-1:39,001 - 52,000 | B106: Adult-1,Dependents-1 | C106: 39,001 - 52,000 | D106: 1916
A107: Adult-1,Dependents-1:52,001 - 64,000 | B107: Adult-1,Dependents-1 | C107: 52,001 - 64,000 | D107: 2041
A108: Adult-1,Dependents-1:64,001 - 77,000 | B108: Adult-1,Dependents-1 | C108: 64,001 - 77,000 | D108: 2216
A109: Adult-1,Dependents-1:77,001 - 103,000 | B109: Adult-1,Dependents-1 | C109: 77,001 - 103,000 | D109: 2478
A110: Adult-1,Dependents-1:103,001 - 129,000 | B110: Adult-1,Dependents-1 | C110: 103,001 - 129,000 | D110: 2864
A111: Adult-1,Dependents-1:129,001 - 155,000 | B111: Adult-1,Dependents-1 | C111: 129,001 - 155,000 | D111: 3195
A112: Adult-1,Dependents-1:155,001 - 180,000 | B112: Adult-1,Dependents-1 | C112: 155,001 - 180,000 | D112: 3556
A113: Adult-1,Dependents-1:180,001 - 206,000 | B113: Adult-1,Dependents-1 | C113: 180,001 - 206,000 | D113: 3766
A114: Adult-1,Dependents-1:206,001 - 258,000 | B114: Adult-1,Dependents-1 | C114: 206,001 - 258,000 | D114: 4053
A115: Adult-1,Dependents-1:258,001 - 322,000 | B115: Adult-1,Dependents-1 | C115: 258,001 - 322,000 | D115: 4557
A116: Adult-1,Dependents-1:322,001 - 386,000 | B116: Adult-1,Dependents-1 | C116: 322,001 - 386,000 | D116: 5313
A117: Adult-1,Dependents-1:386,001 - 644,000 | B117: Adult-1,Dependents-1 | C117: 386,001 - 644,000 | D117: 5407
A119: =B119 & ":" & C119 -> Adult-1,Dependents-2:0 - 26,000 | B119: Adult-1,Dependents-2 | C119: 0 - 26,000 | D119: 2350
A120: Adult-1,Dependents-2:26,001 - 39,000 | B120: Adult-1,Dependents-2 | C120: 26,001 - 39,000 | D120: 2350
A121: Adult-1,Dependents-2:39,001 - 52,000 | B121: Adult-1,Dependents-2 | C121: 39,001 - 52,000 | D121: 2414
A122: Adult-1,Dependents-2:52,001 - 64,000 | B122: Adult-1,Dependents-2 | C122: 52,001 - 64,000 | D122: 2538
A123: Adult-1,Dependents-2:64,001 - 77,000 | B123: Adult-1,Dependents-2 | C123: 64,001 - 77,000 | D123: 2713
A124: Adult-1,Dependents-2:77,001 - 103,000 | B124: Adult-1,Dependents-2 | C124: 77,001 - 103,000 | D124: 2974
A125: Adult-1,Dependents-2:103,001 - 129,000 | B125: Adult-1,Dependents-2 | C125: 103,001 - 129,000 | D125: 3358
A126: Adult-1,Dependents-2:129,001 - 155,000 | B126: Adult-1,Dependents-2 | C126: 129,001 - 155,000 | D126: 3688
A127: Adult-1,Dependents-2:155,001 - 180,000 | B127: Adult-1,Dependents-2 | C127: 155,001 - 180,000 | D127: 4046
A128: Adult-1,Dependents-2:180,001 - 206,000 | B128: Adult-1,Dependents-2 | C128: 180,001 - 206,000 | D128: 4255
A129: Adult-1,Dependents-2:206,001 - 258,000 | B129: Adult-1,Dependents-2 | C129: 206,001 - 258,000 | D129: 4542
A130: Adult-1,Dependents-2:258,001 - 322,000 | B130: Adult-1,Dependents-2 | C130: 258,001 - 322,000 | D130: 5043
A131: Adult-1,Dependents-2:322,001 - 386,000 | B131: Adult-1,Dependents-2 | C131: 322,001 - 386,000 | D131: 5796
A132: Adult-1,Dependents-2:386,001 - 644,000 | B132: Adult-1,Dependents-2 | C132: 386,001 - 644,000 | D132: 5889
A134: =B134 & ":" & C134 -> Adult-1,Dependents-3:0 - 26,000 | B134: Adult-1,Dependents-3 | C134: 0 - 26,000 | D134: 2912
A135: Adult-1,Dependents-3:26,001 - 39,000 | B135: Adult-1,Dependents-3 | C135: 26,001 - 39,000 | D135: 2912
A136: Adult-1,Dependents-3:39,001 - 52,000 | B136: Adult-1,Dependents-3 | C136: 39,001 - 52,000 | D136: 2912
A137: Adult-1,Dependents-3:52,001 - 64,000 | B137: Adult-1,Dependents-3 | C137: 52,001 - 64,000 | D137: 3036
A138: Adult-1,Dependents-3:64,001 - 77,000 | B138: Adult-1,Dependents-3 | C138: 64,001 - 77,000 | D138: 3209
A139: Adult-1,Dependents-3:77,001 - 103,000 | B139: Adult-1,Dependents-3 | C139: 77,001 - 103,000 | D139: 3469
A140: Adult-1,Dependents-3:103,001 - 129,000 | B140: Adult-1,Dependents-3 | C140: 103,001 - 129,000 | D140: 3852
A141: Adult-1,Dependents-3:129,001 - 155,000 | B141: Adult-1,Dependents-3 | C141: 129,001 - 155,000 | D141: 4180
A142: Adult-1,Dependents-3:155,001 - 180,000 | B142: Adult-1,Dependents-3 | C142: 155,001 - 180,000 | D142: 4537
A143: Adult-1,Dependents-3:180,001 - 206,000 | B143: Adult-1,Dependents-3 | C143: 180,001 - 206,000 | D143: 4745
A144: Adult-1,Dependents-3:206,001 - 258,000 | B144: Adult-1,Dependents-3 | C144: 206,001 - 258,000 | D144: 5030
A145: Adult-1,Dependents-3:258,001 - 322,000 | B145: Adult-1,Dependents-3 | C145: 258,001 - 322,000 | D145: 5529
A146: Adult-1,Dependents-3:322,001 - 386,000 | B146: Adult-1,Dependents-3 | C146: 322,001 - 386,000 | D146: 6278
A147: Adult-1,Dependents-3:386,001 - 644,000 | B147: Adult-1,Dependents-3 | C147: 386,001 - 644,000 | D147: 6371
A150: =B150 & ":" & C150 -> Adult-1,Dependents-4:0 - 26,000 | B150: Adult-1,Dependents-4 | C150: 0 - 26,000 | D150: 3344
A151: Adult-1,Dependents-4:26,001 - 39,000 | B151: Adult-1,Dependents-4 | C151: 26,001 - 39,000 | D151: 3344
A152: Adult-1,Dependents-4:39,001 - 52,000 | B152: Adult-1,Dependents-4 | C152: 39,001 - 52,000 | D152: 3344
A153: Adult-1,Dependents-4:52,001 - 64,000 | B153: Adult-1,Dependents-4 | C153: 52,001 - 64,000 | D153: 3472
A154: Adult-1,Dependents-4:64,001 - 77,000 | B154: Adult-1,Dependents-4 | C154: 64,001 - 77,000 | D154: 3651
A155: Adult-1,Dependents-4:77,001 - 103,000 | B155: Adult-1,Dependents-4 | C155: 77,001 - 103,000 | D155: 3919
A156: Adult-1,Dependents-4:103,001 - 129,000 | B156: Adult-1,Dependents-4 | C156: 103,001 - 129,000 | D156: 4313
A157: Adult-1,Dependents-4:129,001 - 155,000 | B157: Adult-1,Dependents-4 | C157: 129,001 - 155,000 | D157: 4652
A158: Adult-1,Dependents-4:155,001 - 180,000 | B158: Adult-1,Dependents-4 | C158: 155,001 - 180,000 | D158: 5020
A159: Adult-1,Dependents-4:180,001 - 206,000 | B159: Adult-1,Dependents-4 | C159: 180,001 - 206,000 | D159: 5235
A160: Adult-1,Dependents-4:206,001 - 258,000 | B160: Adult-1,Dependents-4 | C160: 206,001 - 258,000 | D160: 5528
A161: Adult-1,Dependents-4:258,001 - 322,000 | B161: Adult-1,Dependents-4 | C161: 258,001 - 322,000 | D161: 6043
A162: Adult-1,Dependents-4:322,001 - 386,000 | B162: Adult-1,Dependents-4 | C162: 322,001 - 386,000 | D162: 6815
A163: Adult-1,Dependents-4:386,001 - 644,000 | B163: Adult-1,Dependents-4 | C163: 386,001 - 644,000 | D163: 6911
A165: =B165 & ":" & C165 -> Adult-1,Dependents-5:0 - 26,000 | B165: Adult-1,Dependents-5 | C165: 0 - 26,000 | D165: 4124
A166: Adult-1,Dependents-5:26,001 - 39,000 | B166: Adult-1,Dependents-5 | C166: 26,001 - 39,000 | D166: 4124
A167: Adult-1,Dependents-5:39,001 - 52,000 | B167: Adult-1,Dependents-5 | C167: 39,001 - 52,000 | D167: 4124
A168: Adult-1,Dependents-5:52,001 - 64,000 | B168: Adult-1,Dependents-5 | C168: 52,001 - 64,000 | D168: 4124
A169: Adult-1,Dependents-5:64,001 - 77,000 | B169: Adult-1,Dependents-5 | C169: 64,001 - 77,000 | D169: 4124
A170: Adult-1,Dependents-5:77,001 - 103,000 | B170: Adult-1,Dependents-5 | C170: 77,001 - 103,000 | D170: 4395
A171: Adult-1,Dependents-5:103,001 - 129,000 | B171: Adult-1,Dependents-5 | C171: 103,001 - 129,000 | D171: 4794
A172: Adult-1,Dependents-5:129,001 - 155,000 | B172: Adult-1,Dependents-5 | C172: 129,001 - 155,000 | D172: 5135
A173: Adult-1,Dependents-5:155,001 - 180,000 | B173: Adult-1,Dependents-5 | C173: 155,001 - 180,000 | D173: 5507
A174: Adult-1,Dependents-5:180,001 - 206,000 | B174: Adult-1,Dependents-5 | C174: 180,001 - 206,000 | D174: 5724
A175: Adult-1,Dependents-5:206,001 - 258,000 | B175: Adult-1,Dependents-5 | C175: 206,001 - 258,000 | D175: 6021
A176: Adult-1,Dependents-5:258,001 - 322,000 | B176: Adult-1,Dependents-5 | C176: 258,001 - 322,000 | D176: 6541
A177: Adult-1,Dependents-5:322,001 - 386,000 | B177: Adult-1,Dependents-5 | C177: 322,001 - 386,000 | D177: 7321
A178: Adult-1,Dependents-5:386,001 - 644,000 | B178: Adult-1,Dependents-5 | C178: 386,001 - 644,000 | D178: 7418
A180: =B180 & ":" & C180 -> Adult-1,Dependents-6:0 - 26,000 | B180: Adult-1,Dependents-6 | C180: 0 - 26,000 | D180: 4872
A181: Adult-1,Dependents-6:26,001 - 39,000 | B181: Adult-1,Dependents-6 | C181: 26,001 - 39,000 | D181: 4872
A182: Adult-1,Dependents-6:39,001 - 52,000 | B182: Adult-1,Dependents-6 | C182: 39,001 - 52,000 | D182: 4872
A183: Adult-1,Dependents-6:52,001 - 64,000 | B183: Adult-1,Dependents-6 | C183: 52,001 - 64,000 | D183: 4872
A184: Adult-1,Dependents-6:64,001 - 77,000 | B184: Adult-1,Dependents-6 | C184: 64,001 - 77,000 | D184: 4872
A185: Adult-1,Dependents-6:77,001 - 103,000 | B185: Adult-1,Dependents-6 | C185: 77,001 - 103,000 | D185: 4872
A186: Adult-1,Dependents-6:103,001 - 129,000 | B186: Adult-1,Dependents-6 | C186: 103,001 - 129,000 | D186: 5274
A187: Adult-1,Dependents-6:129,001 - 155,000 | B187: Adult-1,Dependents-6 | C187: 129,001 - 155,000 | D187: 5619
A188: Adult-1,Dependents-6:155,001 - 180,000 | B188: Adult-1,Dependents-6 | C188: 155,001 - 180,000 | D188: 5994
A189: Adult-1,Dependents-6:180,001 - 206,000 | B189: Adult-1,Dependents-6 | C189: 180,001 - 206,000 | D189: 6214
A190: Adult-1,Dependents-6:206,001 - 258,000 | B190: Adult-1,Dependents-6 | C190: 206,001 - 258,000 | D190: 6513
A191: Adult-1,Dependents-6:258,001 - 322,000 | B191: Adult-1,Dependents-6 | C191: 258,001 - 322,000 | D191: 7039
A192: Adult-1,Dependents-6:322,001 - 386,000 | B192: Adult-1,Dependents-6 | C192: 322,001 - 386,000 | D192: 7826
A193: Adult-1,Dependents-6:386,001 - 644,000 | B193: Adult-1,Dependents-6 | C193: 386,001 - 644,000 | D193: 7925
A195: =B195 & ":" & C195 -> Adult-2,Dependents-0:0 - 26,000 | B195: Adult-2,Dependents-0 | C195: 0 - 26,000 | D195: 2579
A196: =B196 & ":" & C196 -> Adult-2,Dependents-0:26,001 - 39,000 | B196: Adult-2,Dependents-0 | C196: 26,001 - 39,000 | D196: 2579
A197: Adult-2,Dependents-0:39,001 - 52,000 | B197: Adult-2,Dependents-0 | C197: 39,001 - 52,000 | D197: 2643
A198: Adult-2,Dependents-0:52,001 - 64,000 | B198: Adult-2,Dependents-0 | C198: 52,001 - 64,000 | D198: 2765
A199: Adult-2,Dependents-0:64,001 - 77,000 | B199: Adult-2,Dependents-0 | C199: 64,001 - 77,000 | D199: 2937
A200: Adult-2,Dependents-0:77,001 - 103,000 | B200: Adult-2,Dependents-0 | C200: 77,001 - 103,000 | D200: 3194
A201: Adult-2,Dependents-0:103,001 - 129,000 | B201: Adult-2,Dependents-0 | C201: 103,001 - 129,000 | D201: 3572
A202: Adult-2,Dependents-0:129,001 - 155,000 | B202: Adult-2,Dependents-0 | C202: 129,001 - 155,000 | D202: 3897
A203: Adult-2,Dependents-0:155,001 - 180,000 | B203: Adult-2,Dependents-0 | C203: 155,001 - 180,000 | D203: 4250
A204: Adult-2,Dependents-0:180,001 - 206,000 | B204: Adult-2,Dependents-0 | C204: 180,001 - 206,000 | D204: 4456
A205: Adult-2,Dependents-0:206,001 - 258,000 | B205: Adult-2,Dependents-0 | C205: 206,001 - 258,000 | D205: 4738
A206: Adult-2,Dependents-0:258,001 - 322,000 | B206: Adult-2,Dependents-0 | C206: 258,001 - 322,000 | D206: 5232
A207: Adult-2,Dependents-0:322,001 - 386,000 | B207: Adult-2,Dependents-0 | C207: 322,001 - 386,000 | D207: 5973
A208: Adult-2,Dependents-0:386,001 - 644,000 | B208: Adult-2,Dependents-0 | C208: 386,001 - 644,000 | D208: 6065
A210: =B210 & ":" & C210 -> Adult-2,Dependents-1:0 - 26,000 | B210: Adult-2,Dependents-1 | C210: 0 - 26,000 | D210: 2995
A211: Adult-2,Dependents-1:26,001 - 39,000 | B211: Adult-2,Dependents-1 | C211: 26,001 - 39,000 | D211: 2995
A212: Adult-2,Dependents-1:39,001 - 52,000 | B212: Adult-2,Dependents-1 | C212: 39,001 - 52,000 | D212: 2995
A213: Adult-2,Dependents-1:52,001 - 64,000 | B213: Adult-2,Dependents-1 | C213: 52,001 - 64,000 | D213: 3117
A214: Adult-2,Dependents-1:64,001 - 77,000 | B214: Adult-2,Dependents-1 | C214: 64,001 - 77,000 | D214: 3288
A215: Adult-2,Dependents-1:77,001 - 103,000 | B215: Adult-2,Dependents-1 | C215: 77,001 - 103,000 | D215: 3545
A216: Adult-2,Dependents-1:103,001 - 129,000 | B216: Adult-2,Dependents-1 | C216: 103,001 - 129,000 | D216: 3922
A217: Adult-2,Dependents-1:129,001 - 155,000 | B217: Adult-2,Dependents-1 | C217: 129,001 - 155,000 | D217: 4246
A218: Adult-2,Dependents-1:155,001 - 180,000 | B218: Adult-2,Dependents-1 | C218: 155,001 - 180,000 | D218: 4598
A219: Adult-2,Dependents-1:180,001 - 206,000 | B219: Adult-2,Dependents-1 | C219: 180,001 - 206,000 | D219: 4804
A220: Adult-2,Dependents-1:206,001 - 258,000 | B220: Adult-2,Dependents-1 | C220: 206,001 - 258,000 | D220: 5085
A221: Adult-2,Dependents-1:258,001 - 322,000 | B221: Adult-2,Dependents-1 | C221: 258,001 - 322,000 | D221: 5578
A222: Adult-2,Dependents-1:322,001 - 386,000 | B222: Adult-2,Dependents-1 | C222: 322,001 - 386,000 | D222: 6317
A223: Adult-2,Dependents-1:386,001 - 644,000 | B223: Adult-2,Dependents-1 | C223: 386,001 - 644,000 | D223: 6409
A225: =B225 & ":" & C225 -> Adult-2,Dependents-2:0 - 26,000 | B225: Adult-2,Dependents-2 | C225: 0 - 26,000 | D225: 3340
A226: Adult-2,Dependents-2:26,001 - 39,000 | B226: Adult-2,Dependents-2 | C226: 26,001 - 39,000 | D226: 3340
A227: Adult-2,Dependents-2:39,001 - 52,000 | B227: Adult-2,Dependents-2 | C227: 39,001 - 52,000 | D227: 3340
A228: Adult-2,Dependents-2:52,001 - 64,000 | B228: Adult-2,Dependents-2 | C228: 52,001 - 64,000 | D228: 3463
A229: Adult-2,Dependents-2:64,001 - 77,000 | B229: Adult-2,Dependents-2 | C229: 64,001 - 77,000 | D229: 3635
A230: Adult-2,Dependents-2:77,001 - 103,000 | B230: Adult-2,Dependents-2 | C230: 77,001 - 103,000 | D230: 3894
A231: Adult-2,Dependents-2:103,001 - 129,000 | B231: Adult-2,Dependents-2 | C231: 103,001 - 129,000 | D231: 4273
A232: Adult-2,Dependents-2:129,001 - 155,000 | B232: Adult-2,Dependents-2 | C232: 129,001 - 155,000 | D232: 4599
A233: Adult-2,Dependents-2:155,001 - 180,000 | B233: Adult-2,Dependents-2 | C233: 155,001 - 180,000 | D233: 4954
A234: Adult-2,Dependents-2:180,001 - 206,000 | B234: Adult-2,Dependents-2 | C234: 180,001 - 206,000 | D234: 5160
A235: Adult-2,Dependents-2:206,001 - 258,000 | B235: Adult-2,Dependents-2 | C235: 206,001 - 258,000 | D235: 5443
A236: Adult-2,Dependents-2:258,001 - 322,000 | B236: Adult-2,Dependents-2 | C236: 258,001 - 322,000 | D236: 5939
A237: Adult-2,Dependents-2:322,001 - 386,000 | B237: Adult-2,Dependents-2 | C237: 322,001 - 386,000 | D237: 6683
... 135 more rows

Sheet Serviceability Calc (hidden)
A1: Serviceability Cell Calculation
F2: Total Income Funding level | G2: ='SMSF Serviceability Calculator'!N30 -> 0
B3: =Serviceability!D50&" (After Tax Rates Applied)" -> Available Income (After Tax Rates Applied) | C3: =Serviceability!N50 -> 0 | F3: ='SMSF Serviceability Calculator'!D45&" (After Tax Rates Applied)" -> Available Income (After Tax Rates Applied) | G3: ='SMSF Serviceability Calculator'!N45 -> -166.6666667 | J3: Household 1 | K3: =IF(EXACT('Member Serviceability Calc'!E14,'Serviceability Calc'!J3),'Member Serviceability Calc'!Q14,0)+ IF(EXACT('Member Serviceability Calc'!E15,'Serviceability Calc'!J3),'Member Serviceability Calc'!Q15,0)+IF(EXACT('Member Serviceability Calc'!E16,'Serviceability Calc'!J3),'Member Serviceability Calc'!Q16,0)+ IF(EXACT('Member Serviceability Calc'!E17,'Serviceability Calc'!J3),'Member Serviceability Calc'!Q17,0) -> 0 | L3: =IF(EXACT('Member Serviceability Calc'!E14,'Serviceability Calc'!J3),IF(EXACT('Member Serviceability Calc'!G14,"Alt Doc"),1,0),0)+ IF(EXACT('Member Serviceability Calc'!E15,'Serviceability Calc'!J3),IF(EXACT('Member Serviceability Calc'!G15,"Alt Doc"),1,0),0)+IF(EXACT('Member Serviceability Calc'!E16,'Serviceability Calc'!J3),IF(EXACT('Member Serviceability Calc'!G16,"Alt Doc"),1,0),0)+ IF(EXACT('Member Serviceability Calc'!E17,'Serviceability Calc'!J3),IF(EXACT('Member Serviceability Calc'!G17,"Alt Doc"),1,0),0) -> 0 | M3: =IF(P3>0,Q3,0) -> 0 | N3: =Tables!B374 -> 0 | O3: =M3/M7*M11 ->  | P3: =IF('Member Serviceability Calc'!G14 = "Alt Doc",1,0) -> 0 | Q3: ='Member Serviceability Calc'!Q14 -> 0 | R3: =IF(S3>0,N3*K45,0) -> 0 | S3: =IF(Tables!B370,1,0) -> 0 | T3: =IF(EXACT('Member Serviceability Calc'!E14,'Serviceability Calc'!J3),'Member Serviceability Calc'!O14,0)+ IF(EXACT('Member Serviceability Calc'!E15,'Serviceability Calc'!J3),'Member Serviceability Calc'!O15,0)+IF(EXACT('Member Serviceability Calc'!E16,'Serviceability Calc'!J3),'Member Serviceability Calc'!O16,0)+ IF(EXACT('Member Serviceability Calc'!E17,'Serviceability Calc'!J3),'Member Serviceability Calc'!O17,0) -> 0
B4: Divided by | F4: Divided by | J4: Household 2 | K4: =IF(EXACT('Member Serviceability Calc'!E14,'Serviceability Calc'!J4),'Member Serviceability Calc'!Q14,0)+ IF(EXACT('Member Serviceability Calc'!E15,'Serviceability Calc'!J4),'Member Serviceability Calc'!Q15,0)+IF(EXACT('Member Serviceability Calc'!E16,'Serviceability Calc'!J4),'Member Serviceability Calc'!Q16,0)+ IF(EXACT('Member Serviceability Calc'!E17,'Serviceability Calc'!J4),'Member Serviceability Calc'!Q17,0) -> 0 | L4: =IF(EXACT('Member Serviceability Calc'!E14,'Serviceability Calc'!J4),IF(EXACT('Member Serviceability Calc'!G14,"Alt Doc"),1,0),0)+ IF(EXACT('Member Serviceability Calc'!E15,'Serviceability Calc'!J4),IF(EXACT('Member Serviceability Calc'!G15,"Alt Doc"),1,0),0)+IF(EXACT('Member Serviceability Calc'!E16,'Serviceability Calc'!J4),IF(EXACT('Member Serviceability Calc'!G16,"Alt Doc"),1,0),0)+ IF(EXACT('Member Serviceability Calc'!E17,'Serviceability Calc'!J4),IF(EXACT('Member Serviceability Calc'!G17,"Alt Doc"),1,0),0) -> 0 | M4: =IF(P4>0,Q4,0) -> 0 | N4: =Tables!C374 -> 0 | O4: =M4/M7*M11 ->  | P4: =IF('Member Serviceability Calc'!G15 = "Alt Doc",1,0) -> 0 | Q4: ='Member Serviceability Calc'!Q15 -> 0 | R4: =IF(S4>0,N4*L45,0) -> 0 | S4: =IF(Tables!C370,1,0) -> 0 | T4: =IF(EXACT('Member Serviceability Calc'!E14,'Serviceability Calc'!J4),'Member Serviceability Calc'!O14,0)+ IF(EXACT('Member Serviceability Calc'!E15,'Serviceability Calc'!J4),'Member Serviceability Calc'!O15,0)+IF(EXACT('Member Serviceability Calc'!E16,'Serviceability Calc'!J4),'Member Serviceability Calc'!O16,0)+ IF(EXACT('Member Serviceability Calc'!E17,'Serviceability Calc'!J4),'Member Serviceability Calc'!O17,0) -> 0
B5: =Serviceability!D73 -> Total Monthly Commitments | C5: =SUM(Serviceability!N56:N72) -> 0 | F5: Total Monthly Commitments (Before Buffering) | G5: =SUM('SMSF Serviceability Calculator'!N51,'SMSF Serviceability Calculator'!N55:'SMSF Serviceability Calculator'!N57,'SMSF Serviceability Calculator'!N60) -> 0 | J5: Household 3 | K5: =IF(EXACT('Member Serviceability Calc'!E14,'Serviceability Calc'!J5),'Member Serviceability Calc'!Q14,0)+ IF(EXACT('Member Serviceability Calc'!E15,'Serviceability Calc'!J5),'Member Serviceability Calc'!Q15,0)+IF(EXACT('Member Serviceability Calc'!E16,'Serviceability Calc'!J5),'Member Serviceability Calc'!Q16,0)+ IF(EXACT('Member Serviceability Calc'!E17,'Serviceability Calc'!J5),'Member Serviceability Calc'!Q17,0) -> 0 | L5: =IF(EXACT('Member Serviceability Calc'!E14,'Serviceability Calc'!J5),IF(EXACT('Member Serviceability Calc'!G14,"Alt Doc"),1,0),0)+ IF(EXACT('Member Serviceability Calc'!E15,'Serviceability Calc'!J5),IF(EXACT('Member Serviceability Calc'!G15,"Alt Doc"),1,0),0)+IF(EXACT('Member Serviceability Calc'!E16,'Serviceability Calc'!J5),IF(EXACT('Member Serviceability Calc'!G16,"Alt Doc"),1,0),0)+ IF(EXACT('Member Serviceability Calc'!E17,'Serviceability Calc'!J5),IF(EXACT('Member Serviceability Calc'!G17,"Alt Doc"),1,0),0) -> 0 | M5: =IF(P5>0,Q5,0) -> 0 | N5: =Tables!D374 -> 0 | O5: =M5/M7*M11 ->  | P5: =IF('Member Serviceability Calc'!G16 = "Alt Doc",1,0) -> 0 | Q5: ='Member Serviceability Calc'!Q16 -> 0 | R5: =IF(S5>0,N5*M45,0) -> 0 | S5: =IF(Tables!D370,1,0) -> 0 | T5: =IF(EXACT('Member Serviceability Calc'!E14,'Serviceability Calc'!J5),'Member Serviceability Calc'!O14,0)+ IF(EXACT('Member Serviceability Calc'!E15,'Serviceability Calc'!J5),'Member Serviceability Calc'!O15,0)+IF(EXACT('Member Serviceability Calc'!E16,'Serviceability Calc'!J5),'Member Serviceability Calc'!O16,0)+ IF(EXACT('Member Serviceability Calc'!E17,'Serviceability Calc'!J5),'Member Serviceability Calc'!O17,0) -> 0
A6: Less | B6: =Serviceability!$D$54&" - "&Serviceability!E56 -> RedZed Loan Applied For - Loan 1 | C6: =-Serviceability!N56 -> 0 | E6: Less | F6: =Serviceability!$D$54&" - "&'SMSF Serviceability Calculator'!E51 -> RedZed Loan Applied For - New RedZed Loan | G6: =-'SMSF Serviceability Calculator'!N51 -> 0 | J6: Household 4 | K6: =IF(EXACT('Member Serviceability Calc'!E14,'Serviceability Calc'!J6),'Member Serviceability Calc'!Q14,0)+ IF(EXACT('Member Serviceability Calc'!E15,'Serviceability Calc'!J6),'Member Serviceability Calc'!Q15,0)+IF(EXACT('Member Serviceability Calc'!E16,'Serviceability Calc'!J6),'Member Serviceability Calc'!Q16,0)+ IF(EXACT('Member Serviceability Calc'!E17,'Serviceability Calc'!J6),'Member Serviceability Calc'!Q17,0) -> 0 | L6: =IF(EXACT('Member Serviceability Calc'!E14,'Serviceability Calc'!J6),IF(EXACT('Member Serviceability Calc'!G14,"Alt Doc"),1,0),0)+ IF(EXACT('Member Serviceability Calc'!E15,'Serviceability Calc'!J6),IF(EXACT('Member Serviceability Calc'!G15,"Alt Doc"),1,0),0)+IF(EXACT('Member Serviceability Calc'!E16,'Serviceability Calc'!J6),IF(EXACT('Member Serviceability Calc'!G16,"Alt Doc"),1,0),0)+ IF(EXACT('Member Serviceability Calc'!E17,'Serviceability Calc'!J6),IF(EXACT('Member Serviceability Calc'!G17,"Alt Doc"),1,0),0) -> 0 | M6: =IF(P6>0,Q6,0) -> 0 | N6: =Tables!E374 -> 0 | O6: =M6/M7*M11 ->  | P6: =IF('Member Serviceability Calc'!G17 = "Alt Doc",1,0) -> 0 | Q6: ='Member Serviceability Calc'!Q17 -> 0 | R6: =IF(S6>0,N6*N45,0) -> 0 | S6: =IF(Tables!E370,1,0) -> 0 | T6: =IF(EXACT('Member Serviceability Calc'!E14,'Serviceability Calc'!J6),'Member Serviceability Calc'!O14,0)+ IF(EXACT('Member Serviceability Calc'!E15,'Serviceability Calc'!J6),'Member Serviceability Calc'!O15,0)+IF(EXACT('Member Serviceability Calc'!E16,'Serviceability Calc'!J6),'Member Serviceability Calc'!O16,0)+ IF(EXACT('Member Serviceability Calc'!E17,'Serviceability Calc'!J6),'Member Serviceability Calc'!O17,0) -> 0
A7: Less | B7: =Serviceability!$D$54&" - "&Serviceability!E57 -> RedZed Loan Applied For - Loan 2 | C7: =-Serviceability!N57 -> 0 | E7: Less | F7: =Serviceability!$D$54&" - "&Serviceability!I57 -> RedZed Loan Applied For - | G7: =-Serviceability!R57 -> 0 | K7: =SUM(K3:K6) -> 0 | M7: =SUM(M3:M6) -> 0 | N7: =SUM(N3:N6) -> 0 | O7: =IFERROR(M7/(K7+G2),0) -> 0 | P7: =IFERROR(R7/(N7+G2),0) -> 0 | R7: =SUM(R3:R6) -> 0
A8: Less | B8: =Serviceability!$D$54&" - "&Serviceability!E58 -> RedZed Loan Applied For - Loan 3 | C8: =-Serviceability!N58 -> 0 | E8: Less | F8: =Serviceability!$D$54&" - "&Serviceability!I58 -> RedZed Loan Applied For - | G8: =-Serviceability!R58 -> 0
A9: Plus | B9: =Serviceability!$D$54&" - "&Tables!A32 -> RedZed Loan Applied For - Buffered Loan 1 | C9: =Tables!B32 -> 0 | E9: Plus | F9: =Serviceability!$D$54&" - "&Tables!A395 -> RedZed Loan Applied For - Buffered Loan 1 | G9: =Tables!B395 -> 0 | K9: =SUM(G3,K3:K6) -> -166.6666667 | N9: =SUM(N3:N6,G3) -> -166.6666667
A10: Plus | B10: =Serviceability!$D$54&" - "&Tables!A33 -> RedZed Loan Applied For - Buffered Loan 2 | C10: =Tables!B33 -> 0 | E10: Plus | F10: =Serviceability!$D$54&" - "&Tables!E33 -> RedZed Loan Applied For - 0 | G10: =0 -> 0
A11: Plus | B11: =Serviceability!$D$54&" - "&Tables!A34 -> RedZed Loan Applied For - Buffered Loan 3 | C11: =Tables!B34 -> 0 | E11: Plus | F11: =Serviceability!$D$54&" - "&Tables!E34 -> RedZed Loan Applied For - 0 | G11: =0 -> 0 | M11: =0.25*(K7+G2) -> 0 | N11: =0.25*(N7+G2) -> 0 | R11: =G3+N7+N11-R7 -> -166.6666667
A12: Less | B12: =Serviceability!$D$61&": "&Serviceability!E61 -> Existing Loans: Loan 1 - Existing Secured | C12: =-Serviceability!N61 -> 0 | E12: Less | F12: =Serviceability!$D$61&": "&'SMSF Serviceability Calculator'!E55 -> Existing Loans: Loan 1 | G12: =-'SMSF Serviceability Calculator'!N55 -> 0
A13: Less | B13: =Serviceability!$D$61&": "&Serviceability!E62 -> Existing Loans: Loan 2 - Existing Secured | C13: =-Serviceability!N62 -> 0 | E13: Less | F13: =Serviceability!$D$61&": "&'SMSF Serviceability Calculator'!E56 -> Existing Loans: Loan 2 | G13: =-'SMSF Serviceability Calculator'!N56 -> 0 | M13: =G3+K7+M11-M7 -> -166.6666667
A14: Plus | B14: =Serviceability!$D$61&": "&Tables!A38 -> Existing Loans: Buffered Loan 1 | C14: =Tables!C38 -> 0 | E14: Less | F14: =Serviceability!$D$61&": "&'SMSF Serviceability Calculator'!E57 -> Existing Loans: Loan 3 | G14: =-'SMSF Serviceability Calculator'!N57 -> 0
A15: Plus | B15: =Serviceability!$D$61&": "&Tables!A39 -> Existing Loans: Buffered Loan 2 | C15: =Tables!C39 -> 0 | E15: Plus | F15: =Serviceability!$D$61&": "&'SMSF Serviceability Calculator'!D60 -> Existing Loans: Other Loan/Liability Limits if any | G15: =-'SMSF Serviceability Calculator'!N60 -> 0 | L15: Full Doc | M15: Alt Doc
A16: Plus | B16: =Tables!A43 -> Fees - Loan 1 | C16: =Tables!C43 -> 0 | E16: Plus | F16: =Serviceability!$D$61&": "&Tables!A401 -> Existing Loans: Buffered Loan 1 | G16: =Tables!C401 -> 0 | J16: Minimum Contribution | L16: =IF(G3<0,"N/A",ROUNDUP(G23*1.1-G3,0)) -> N/A | M16: =IFERROR(L16*4-G2,"N/A") -> N/A
A17: Plus | B17: =Tables!A44 -> Fees - Loan 2 | C17: =Tables!C44 -> 0 | E17: Plus | F17: =Serviceability!$D$61&": "&Tables!A402 -> Existing Loans: Buffered Loan 2 | G17: =Tables!C402 -> 0 | L17: =IFERROR(L16+G3,"N/A") -> N/A
A18: Plus | B18: =Tables!A45 -> Fees - Loan 3 | C18: =Tables!C45 -> 0 | E18: Plus | F18: =Serviceability!$D$61&": "&Tables!A403 -> Existing Loans: Buffered Loan 3 | G18: =Tables!C403 -> 0 | M18: =ROUNDUP(IF(O7>0.25,M13,K9),2) -> -166.67
E19: Plus | F19: =Tables!A410 -> Fees - Loan 1 | G19: =Tables!C410 -> 0
B20: Total Monthly Commitments (After Repayment Buffering & Fees) | C20: =SUM(C5:C19) -> 0 | E20: Plus | F20: =Tables!E44 -> 0 | G20: =Tables!G44 -> 0 | L20: =IFERROR(ROUNDUP(IF(L16/0.85*12 <= 30000,L16/0.85,L16*12-9000/12),0),"N/A") -> N/A
F21: =Tables!E45 -> 0 | G21: =Tables!G45 -> 
B22: =Serviceability!K76&" - Calculated as:" -> - Calculated as: | C22: =ROUNDUP(C3/C20,2) ->  | F22: =Serviceability!$D$61&": "&Tables!A404 -> Existing Loans: Buffered Other Loan/Liability Limits if any | G22: =Tables!C404 -> 0
F23: Total Monthly Commitments (After Repayment Buffering & Fees) | G23: =SUM(G5:G22) -> 0
J24: =IFERROR(ROUNDUP(IF(O7>0.25,M13,K9)/G23,2),0) -> 0 | K24: =ROUNDUP(IF(P7>0.25,R11,N7+G3)/G23,2) ->  | M24: =ROUNDUP(N9/G23,2) -> 
F25: =Serviceability!O76&" - Calculated as:" -> - Calculated as: | G25: =ROUNDUP(G3/G23,2) -> 
G26: =G25 -> 
F30: Fail – The proposed alt doc additional member contribution required to meet servicing exceeds our 25% rule
F31: (25% rule – Proposed Alt Doc additional member contributions cannot exceed 25% of the total income required to meet fund serviceability)
F33: Fail – your proposed additional contributions are insufficient to meet minimum serviceability requirements
F35: Please complete below to validate the capacity of the member(s) to make the proposed additional contribution
F38: =_xlfn.CONCAT("Minimum Net Proposed Member Contribution Required to Service: $ ", L16) -> Minimum Net Proposed Member Contribution Required to Service: $ N/A
F40: Your contribution is greater than the minimum required to service the loan
K41: Household 1 | L41: Household 2 | M41: Household 3 | N41: Household 4
J42: Alt Doc | K42: =IF(EXACT('Member Serviceability Calc'!E14,K41),IF(EXACT('Member Serviceability Calc'!G14,J42),'Member Serviceability Calc'!Q14,0),0)+IF(EXACT('Member Serviceability Calc'!E15,K41),IF(EXACT('Member Serviceability Calc'!G15,J42),'Member Serviceability Calc'!Q15,0),0)+IF(EXACT('Member Serviceability Calc'!E16,K41),IF(EXACT('Member Serviceability Calc'!G16,J42),'Member Serviceability Calc'!Q16,0),0)+IF(EXACT('Member Serviceability Calc'!E17,K41),IF(EXACT('Member Serviceability Calc'!G17,J42),'Member Serviceability Calc'!Q17,0),0) -> 0 | L42: =IF(EXACT('Member Serviceability Calc'!E14,L41),IF(EXACT('Member Serviceability Calc'!G14,J42),'Member Serviceability Calc'!Q14,0),0)+IF(EXACT('Member Serviceability Calc'!E15,L41),IF(EXACT('Member Serviceability Calc'!G15,J42),'Member Serviceability Calc'!Q15,0),0)+IF(EXACT('Member Serviceability Calc'!E16,L41),IF(EXACT('Member Serviceability Calc'!G16,J42),'Member Serviceability Calc'!Q16,0),0)+IF(EXACT('Member Serviceability Calc'!E17,L41),IF(EXACT('Member Serviceability Calc'!G17,J42),'Member Serviceability Calc'!Q17,0),0) -> 0 | M42: =IF(EXACT('Member Serviceability Calc'!E14,M41),IF(EXACT('Member Serviceability Calc'!G14,J42),'Member Serviceability Calc'!Q14,0),0)+IF(EXACT('Member Serviceability Calc'!E15,M41),IF(EXACT('Member Serviceability Calc'!G15,J42),'Member Serviceability Calc'!Q15,0),0)+IF(EXACT('Member Serviceability Calc'!E16,M41),IF(EXACT('Member Serviceability Calc'!G16,J42),'Member Serviceability Calc'!Q16,0),0)+IF(EXACT('Member Serviceability Calc'!E17,M41),IF(EXACT('Member Serviceability Calc'!G17,J42),'Member Serviceability Calc'!Q17,0),0) -> 0 | N42: =IF(EXACT('Member Serviceability Calc'!E14,N41),IF(EXACT('Member Serviceability Calc'!G14,J42),'Member Serviceability Calc'!Q14,0),0)+IF(EXACT('Member Serviceability Calc'!E15,N41),IF(EXACT('Member Serviceability Calc'!G15,J42),'Member Serviceability Calc'!Q15,0),0)+IF(EXACT('Member Serviceability Calc'!E16,N41),IF(EXACT('Member Serviceability Calc'!G16,J42),'Member Serviceability Calc'!Q16,0),0)+IF(EXACT('Member Serviceability Calc'!E17,N41),IF(EXACT('Member Serviceability Calc'!G17,J42),'Member Serviceability Calc'!Q17,0),0) -> 0
J43: Full Doc | K43: =IF(EXACT('Member Serviceability Calc'!E14,K41),IF(EXACT('Member Serviceability Calc'!G14,J43),'Member Serviceability Calc'!Q14,0),0)+IF(EXACT('Member Serviceability Calc'!E15,K41),IF(EXACT('Member Serviceability Calc'!G15,J43),'Member Serviceability Calc'!Q15,0),0)+IF(EXACT('Member Serviceability Calc'!E16,K41),IF(EXACT('Member Serviceability Calc'!G16,J43),'Member Serviceability Calc'!Q16,0),0)+IF(EXACT('Member Serviceability Calc'!E17,K41),IF(EXACT('Member Serviceability Calc'!G17,J43),'Member Serviceability Calc'!Q17,0),0) -> 0 | L43: =IF(EXACT('Member Serviceability Calc'!E14,L41),IF(EXACT('Member Serviceability Calc'!G14,J43),'Member Serviceability Calc'!Q14,0),0)+IF(EXACT('Member Serviceability Calc'!E15,L41),IF(EXACT('Member Serviceability Calc'!G15,J43),'Member Serviceability Calc'!Q15,0),0)+IF(EXACT('Member Serviceability Calc'!E16,L41),IF(EXACT('Member Serviceability Calc'!G16,J43),'Member Serviceability Calc'!Q16,0),0)+IF(EXACT('Member Serviceability Calc'!E17,L41),IF(EXACT('Member Serviceability Calc'!G17,J43),'Member Serviceability Calc'!Q17,0),0) -> 0 | M43: =IF(EXACT('Member Serviceability Calc'!E14,M41),IF(EXACT('Member Serviceability Calc'!G14,J43),'Member Serviceability Calc'!Q14,0),0)+IF(EXACT('Member Serviceability Calc'!E15,M41),IF(EXACT('Member Serviceability Calc'!G15,J43),'Member Serviceability Calc'!Q15,0),0)+IF(EXACT('Member Serviceability Calc'!E16,M41),IF(EXACT('Member Serviceability Calc'!G16,J43),'Member Serviceability Calc'!Q16,0),0)+IF(EXACT('Member Serviceability Calc'!E17,M41),IF(EXACT('Member Serviceability Calc'!G17,J43),'Member Serviceability Calc'!Q17,0),0) -> 0 | N43: =IF(EXACT('Member Serviceability Calc'!E14,N41),IF(EXACT('Member Serviceability Calc'!G14,J43),'Member Serviceability Calc'!Q14,0),0)+IF(EXACT('Member Serviceability Calc'!E15,N41),IF(EXACT('Member Serviceability Calc'!G15,J43),'Member Serviceability Calc'!Q15,0),0)+IF(EXACT('Member Serviceability Calc'!E16,N41),IF(EXACT('Member Serviceability Calc'!G16,J43),'Member Serviceability Calc'!Q16,0),0)+IF(EXACT('Member Serviceability Calc'!E17,N41),IF(EXACT('Member Serviceability Calc'!G17,J43),'Member Serviceability Calc'!Q17,0),0) -> 0
K44: =SUM(K42:K43) -> 0 | L44: =SUM(L42:L43) -> 0 | M44: 0 | N44: 0
K45: =IFERROR(K42/K44,0) -> 0 | L45: 0 | M45: 0 | N45: =IFERROR(N42/N44,0) -> 0
F52: =AND('Member Serviceability Calc'!O14>0,'Tax Calc'!D9<0) -> FALSE

Sheet Tax Calc (hidden)
A1: Tax Calc
A3: Annual Gross | D3: Gross | E3: Tax | F3: Medicare | G3: Income offset | H3: Net | I3: Net Monthly
A5: Applicant / G'Tor 1 | B5: Salary / Self Employed | D5: ='Member Serviceability Calc'!O14*12 -> 0 | E5: =IF(D5<Tables!$A$6,0,IF(AND(D5>Tables!$A$6,D5<Tables!$A$7),(D5-Tables!$A$6)*Tables!$C$6,IF(AND(D5>Tables!$A$7,D5<Tables!$A$8),Tables!$D$7+(D5-Tables!$A$7)*Tables!$C$7,IF(AND(D5>Tables!$A$8,D5<Tables!$A$9),Tables!$D$8+(D5-Tables!$A$8)*Tables!$C$8,IF(D5>Tables!$A$9,Tables!$D$9+(D5-Tables!$A$9)*Tables!$C$9))))) -> 0 | F5: =D5*Tables!C$16 -> 0 | G5: =IFERROR(((D5-VLOOKUP(D5,$A$29:$D$33,1,TRUE))*VLOOKUP(D5,$A$29:$D$33,3,TRUE)+VLOOKUP(D5,$A$29:$D$33,4,TRUE)),0)+IFERROR((IF(D5>66667,66667-45001,(D5-VLOOKUP(D5,$A$41:$D$43,1,TRUE)))*VLOOKUP(D5,$A$41:$D$43,3,TRUE)+VLOOKUP(D5,$A$41:$D$43,4,TRUE)),0) -> 0 | H5: =D5-E5-F5+G5 -> 0 | I5: =H5/12 -> 0
A6: Applicant / G'Tor 2 | B6: Salary / Self Employed | D6: ='Member Serviceability Calc'!O15*12 -> 0 | E6: =IF(D6<Tables!$A$6,0,IF(AND(D6>=Tables!$A$6,D6<Tables!$A$7),(D6-Tables!$A$6)*Tables!$C$6,IF(AND(D6>=Tables!$A$7,D6<Tables!$A$8),Tables!$D$7+(D6-Tables!$A$7)*Tables!$C$7,IF(AND(D6>=Tables!$A$8,D6<Tables!$A$9),Tables!$D$8+(D6-Tables!$A$8)*Tables!$C$8,IF(D6>=Tables!$A$9,Tables!$D$9+(D6-Tables!$A$9)*Tables!$C$9))))) -> 0 | F6: =D6*Tables!C$16 -> 0 | G6: =IFERROR(((D6-VLOOKUP(D6,$A$29:$D$33,1,TRUE))*VLOOKUP(D6,$A$29:$D$33,3,TRUE)+VLOOKUP(D6,$A$29:$D$33,4,TRUE)),0)+IFERROR((IF(D6>66667,66667-45001,(D6-VLOOKUP(D6,$A$41:$D$43,1,TRUE)))*VLOOKUP(D6,$A$41:$D$43,3,TRUE)+VLOOKUP(D6,$A$41:$D$43,4,TRUE)),0) -> 0 | H6: =D6-E6-F6+G6 -> 0 | I6: 0
A7: Applicant / G'Tor 3 | B7: Salary / Self Employed | D7: ='Member Serviceability Calc'!O16*12 -> 0 | E7: =IF(D7<Tables!$A$6,0,IF(AND(D7>=Tables!$A$6,D7<Tables!$A$7),(D7-Tables!$A$6)*Tables!$C$6,IF(AND(D7>=Tables!$A$7,D7<Tables!$A$8),Tables!$D$7+(D7-Tables!$A$7)*Tables!$C$7,IF(AND(D7>=Tables!$A$8,D7<Tables!$A$9),Tables!$D$8+(D7-Tables!$A$8)*Tables!$C$8,IF(D7>=Tables!$A$9,Tables!$D$9+(D7-Tables!$A$9)*Tables!$C$9))))) -> 0 | F7: =D7*Tables!C$16 -> 0 | G7: 0 | H7: 0 | I7: 0 | O7: ='Member Serviceability Calc'!L26 - 'Member Serviceability Calc'!O14* 12 -> 0
A8: Applicant / G'Tor 4 | B8: Salary / Self Employed | D8: ='Member Serviceability Calc'!O17*12 -> 0 | E8: =IF(D8<Tables!$A$6,0,IF(AND(D8>=Tables!$A$6,D8<Tables!$A$7),(D8-Tables!$A$6)*Tables!$C$6,IF(AND(D8>=Tables!$A$7,D8<Tables!$A$8),Tables!$D$7+(D8-Tables!$A$7)*Tables!$C$7,IF(AND(D8>=Tables!$A$8,D8<Tables!$A$9),Tables!$D$8+(D8-Tables!$A$8)*Tables!$C$8,IF(D8>=Tables!$A$9,Tables!$D$9+(D8-Tables!$A$9)*Tables!$C$9))))) -> 0 | F8: =D8*Tables!C$16 -> 0 | G8: 0 | H8: 0 | I8: 0 | O8: ='Member Serviceability Calc'!L27 - 'Member Serviceability Calc'!O15* 12 -> 0
A9: Member 1 | B9: Salary / Self Employed | D9: ='Member Serviceability Calc'!L26 - 'Member Serviceability Calc'!O14* 12 -> 0 | E9: =IF(D9<Tables!$A$6,0,IF(AND(D9>=Tables!$A$6,D9<Tables!$A$7),(D9-Tables!$A$6)*Tables!$C$6,IF(AND(D9>=Tables!$A$7,D9<Tables!$A$8),Tables!$D$7+(D9-Tables!$A$7)*Tables!$C$7,IF(AND(D9>=Tables!$A$8,D9<Tables!$A$9),Tables!$D$8+(D9-Tables!$A$8)*Tables!$C$8,IF(D9>=Tables!$A$9,Tables!$D$9+(D9-Tables!$A$9)*Tables!$C$9))))) -> 0 | F9: =D9*Tables!C$16 -> 0 | G9: 0 | H9: 0 | I9: 0 | O9: ='Member Serviceability Calc'!L28 - 'Member Serviceability Calc'!O16* 12 -> 0 | S9: 100000
A10: Member 2 | B10: Salary / Self Employed | D10: ='Member Serviceability Calc'!L27 - 'Member Serviceability Calc'!O15* 12 -> 0 | E10: =IF(D10<Tables!$A$6,0,IF(AND(D10>=Tables!$A$6,D10<Tables!$A$7),(D10-Tables!$A$6)*Tables!$C$6,IF(AND(D10>=Tables!$A$7,D10<Tables!$A$8),Tables!$D$7+(D10-Tables!$A$7)*Tables!$C$7,IF(AND(D10>=Tables!$A$8,D10<Tables!$A$9),Tables!$D$8+(D10-Tables!$A$8)*Tables!$C$8,IF(D10>=Tables!$A$9,Tables!$D$9+(D10-Tables!$A$9)*Tables!$C$9))))) -> 0 | F10: =D10*Tables!C$16 -> 0 | G10: 0 | H10: 0 | I10: 0 | O10: ='Member Serviceability Calc'!L29 - 'Member Serviceability Calc'!O17* 12 -> 0 | S10: 50000
A11: Member 3 | B11: Salary / Self Employed | D11: ='Member Serviceability Calc'!L28 - 'Member Serviceability Calc'!O16* 12 -> 0 | E11: =IF(D11<Tables!$A$6,0,IF(AND(D11>=Tables!$A$6,D11<Tables!$A$7),(D11-Tables!$A$6)*Tables!$C$6,IF(AND(D11>=Tables!$A$7,D11<Tables!$A$8),Tables!$D$7+(D11-Tables!$A$7)*Tables!$C$7,IF(AND(D11>=Tables!$A$8,D11<Tables!$A$9),Tables!$D$8+(D11-Tables!$A$8)*Tables!$C$8,IF(D11>=Tables!$A$9,Tables!$D$9+(D11-Tables!$A$9)*Tables!$C$9))))) -> 0 | F11: =D11*Tables!C$16 -> 0 | G11: 0 | H11: 0 | I11: 0 | S11: 40000
A12: Member 4 | B12: Salary / Self Employed | D12: ='Member Serviceability Calc'!L29 - 'Member Serviceability Calc'!O17* 12 -> 0 | E12: =IF(D12<Tables!$A$6,0,IF(AND(D12>=Tables!$A$6,D12<Tables!$A$7),(D12-Tables!$A$6)*Tables!$C$6,IF(AND(D12>=Tables!$A$7,D12<Tables!$A$8),Tables!$D$7+(D12-Tables!$A$7)*Tables!$C$7,IF(AND(D12>=Tables!$A$8,D12<Tables!$A$9),Tables!$D$8+(D12-Tables!$A$8)*Tables!$C$8,IF(D12>=Tables!$A$9,Tables!$D$9+(D12-Tables!$A$9)*Tables!$C$9))))) -> 0 | F12: =D12*Tables!C$16 -> 0 | G12: 0 | H12: 0 | I12: 0 | S12: 20000
K17: Total Income
K18: Household 1 | L18: =IF('Member Serviceability Calc'!E26 = 'Tax Calc'!K18,'Member Serviceability Calc'!N26,0) -> 0
A19: Test lower and middle income offset | D19: Formula | E19: ( income - income lower range ) *offset rate + baseline | L19: =IF('Member Serviceability Calc'!E27 = 'Tax Calc'!K18,'Member Serviceability Calc'!N27,0) -> 0
L20: =IF('Member Serviceability Calc'!E28 = 'Tax Calc'!K18,'Member Serviceability Calc'!N28,0) -> 0
A21: income | B21: offset baseline | C21: Income lower range | D21: Income - Lower range | E21: offset reduced % | F21: offset reduced amount | G21: offset amount | L21: =IF('Member Serviceability Calc'!E29 = 'Tax Calc'!K18,'Member Serviceability Calc'!N29,0) -> 0
A22: 80000 | B22: =VLOOKUP(A22,A29:D33,4,TRUE) -> 0 | C22: =VLOOKUP(A22,A29:D33,1,TRUE) -> 48001 | D22: =A22-C22 -> 31999 | E22: =VLOOKUP(A22,A29:D33,3,TRUE) -> 0 | F22: =+D22*E22 -> 0 | G22: =SUM(B22,F22) -> 0 | L22: =SUM(L18:L21) -> 0
K24: Household 2 | L24: =IF('Member Serviceability Calc'!E26 = K24,'Member Serviceability Calc'!N26,0) -> 0
L25: =IF('Member Serviceability Calc'!E27 = K24,'Member Serviceability Calc'!N27,0) -> 0
A26: Lower and Middle income offset | L26: =IF('Member Serviceability Calc'!E28 = K24,'Member Serviceability Calc'!N28,0) -> 0
L27: =IF('Member Serviceability Calc'!E29 = K24,'Member Serviceability Calc'!N29,0) -> 0
A28: Wages Over | B28: Not to Exceed | C28: Tax Rate | L28: =SUM(L24:L27) -> 0
A29: 1 | B29: 37000 | D29: 0
A30: =B29+1 -> 37001 | B30: 48000 | C30: 0 | D30: 0 | K30: Household 3 | L30: =IF('Member Serviceability Calc'!E26 = K30,'Member Serviceability Calc'!N26,0) -> 0
A31: =B30+1 -> 48001 | B31: 90000 | C31: 0 | D31: 0 | L31: =IF('Member Serviceability Calc'!E27 = K30,'Member Serviceability Calc'!N27,0) -> 0
A32: =B31+1 -> 90001 | B32: 126000 | C32: 0 | D32: 0 | L32: =IF('Member Serviceability Calc'!E28 = K30,'Member Serviceability Calc'!N28,0) -> 0
A33: =B32+1 -> 126001 | C33: 0 | D33: 0 | L33: =IF('Member Serviceability Calc'!E29 = K30,'Member Serviceability Calc'!N29,0) -> 0
L34: =SUM(L30:L33) -> 0
K36: Household 4 | L36: =IF('Member Serviceability Calc'!E26 = K36,'Member Serviceability Calc'!N26,0) -> 0
L37: =IF('Member Serviceability Calc'!E27 = K36,'Member Serviceability Calc'!N27,0) -> 0
A38: Low Income offset | L38: =IF('Member Serviceability Calc'!E28 = K36,'Member Serviceability Calc'!N28,0) -> 0
L39: =IF('Member Serviceability Calc'!E29 = K36,'Member Serviceability Calc'!N29,0) -> 0
A40: Wages Over | B40: Not to Exceed | C40: Tax Rate | L40: =SUM(L36:L39) -> 0
A41: 1 | B41: 37500 | D41: 0 | K41: =I41*52 -> 0
A42: =B41+1 -> 37501 | B42: 45000 | C42: 0 | D42: 0
A43: =B42+1 -> 45001 | B43: 66667 | C43: 0 | D43: 0
M44: Member 1 | N44: Member 2 | O44: Member 3 | P44: Member 4
L45: Household 1 | M45: =IF('Member Serviceability Calc'!E26 = 'Tax Calc'!L45,'Member Serviceability Calc'!N26/'Tax Calc'!L22,0) -> 0 | N45: =IF('Member Serviceability Calc'!E27 = 'Tax Calc'!L45,'Member Serviceability Calc'!N27/'Tax Calc'!L22,0) -> 0 | O45: =IF('Member Serviceability Calc'!E28 = 'Tax Calc'!L45,'Member Serviceability Calc'!N28/'Tax Calc'!L22,0) -> 0 | P45: =IF('Member Serviceability Calc'!E29 = 'Tax Calc'!L45,'Member Serviceability Calc'!N29/'Tax Calc'!L22,0) -> 0
L46: Household 2 | M46: =IF('Member Serviceability Calc'!E26 = 'Tax Calc'!L46,'Member Serviceability Calc'!N26/L28,0) -> 0 | N46: =IF('Member Serviceability Calc'!E27 = 'Tax Calc'!L46,'Member Serviceability Calc'!N27/L28,0) -> 0 | O46: =IF('Member Serviceability Calc'!E28 = 'Tax Calc'!L46,'Member Serviceability Calc'!N28/L28,0) -> 0 | P46: =IF('Member Serviceability Calc'!E29 = 'Tax Calc'!L46,'Member Serviceability Calc'!N29/L28,0) -> 0
L47: Household 3 | M47: =IF('Member Serviceability Calc'!E26 = 'Tax Calc'!L47,'Member Serviceability Calc'!N26/L34,0) -> 0 | N47: =IF('Member Serviceability Calc'!E27 = 'Tax Calc'!L47,'Member Serviceability Calc'!N27/L34,0) -> 0 | O47: =IF('Member Serviceability Calc'!E28 = 'Tax Calc'!L47,'Member Serviceability Calc'!N28/L34,0) -> 0 | P47: =IF('Member Serviceability Calc'!E29 = 'Tax Calc'!L47,'Member Serviceability Calc'!N29/L34,0) -> 0
A48: Test low income | L48: Household 4 | M48: =IF('Member Serviceability Calc'!E26 = 'Tax Calc'!L48,'Member Serviceability Calc'!N26/L40,0) -> 0 | N48: =IF('Member Serviceability Calc'!E27 = 'Tax Calc'!L48,'Member Serviceability Calc'!N27/L40,0) -> 0 | O48: =IF('Member Serviceability Calc'!E28 = 'Tax Calc'!L48,'Member Serviceability Calc'!N28/L40,0) -> 0 | P48: =IF('Member Serviceability Calc'!E29 = 'Tax Calc'!L48,'Member Serviceability Calc'!N29/L40,0) -> 0
A50: income | B50: offset baseline | C50: Income lower range | D50: Income - Lower range | E50: offset reduced % | F50: offset reduced amount | G50: offset amount
A51: 80000 | B51: =VLOOKUP(A51,A41:D43,4,TRUE) -> 0 | C51: =VLOOKUP(A51,A41:D43,1,TRUE) -> 45001 | D51: =IF(A51>66667, 66667-45001, A51-C51) -> 21666 | E51: =VLOOKUP(A51,A41:D43,3,TRUE) -> 0 | F51: =+D51*E51 -> 0 | G51: =SUM(B51,F51) -> 0 | L51: Member 1 | M51: =I9 -> 0 | N51: =IF('Member Serviceability Calc'!F26 = 'Tax Calc'!M45,'Tax Calc'!N45*'Tax Calc'!J9,IF('Member Serviceability Calc'!F26 = 'Tax Calc'!M46,'Tax Calc'!J10*'Tax Calc'!N46,IF('Member Serviceability Calc'!F26 = 'Tax Calc'!M47,'Tax Calc'!J11*'Tax Calc'!N47,IF('Member Serviceability Calc'!F26 = 'Tax Calc'!M48,'Tax Calc'!J12*'Tax Calc'!N48,0)))) -> 0
L52: Member 2 | M52: =I10 -> 0 | N52: =IF('Member Serviceability Calc'!F27 = 'Tax Calc'!M45,'Tax Calc'!O45*'Tax Calc'!J9,IF('Member Serviceability Calc'!F27 = 'Tax Calc'!M46,'Tax Calc'!J10*'Tax Calc'!O46,IF('Member Serviceability Calc'!F27 = 'Tax Calc'!M47,'Tax Calc'!J11*'Tax Calc'!O47,IF('Member Serviceability Calc'!F27 = 'Tax Calc'!M48,'Tax Calc'!J12*'Tax Calc'!O48,0)))) -> 0
L53: Member 3 | M53: 0 | N53: =IF('Member Serviceability Calc'!F28 = 'Tax Calc'!M45,'Tax Calc'!P45*'Tax Calc'!J9,IF('Member Serviceability Calc'!F28 = 'Tax Calc'!M46,'Tax Calc'!J10*'Tax Calc'!P46,IF('Member Serviceability Calc'!F28 = 'Tax Calc'!M47,'Tax Calc'!J11*'Tax Calc'!P47,IF('Member Serviceability Calc'!F28 = 'Tax Calc'!M48,'Tax Calc'!J12*'Tax Calc'!P48,0)))) -> 0
L54: Member 4 | M54: 0 | N54: =IF('Member Serviceability Calc'!F29 = 'Tax Calc'!M45,'Tax Calc'!Q45*'Tax Calc'!J9,IF('Member Serviceability Calc'!F29 = 'Tax Calc'!M46,'Tax Calc'!J10*'Tax Calc'!Q46,IF('Member Serviceability Calc'!F29 = 'Tax Calc'!M47,'Tax Calc'!J11*'Tax Calc'!Q47,IF('Member Serviceability Calc'!F29 = 'Tax Calc'!M48,'Tax Calc'!J12*'Tax Calc'!Q48,0)))) -> 0

Sheet User Problems (hidden)
A1: # | B1: Date | C1: Submitted By | D1: Sheet Name (if applicable) | E1: Problem | F1: Initial Review Assessment | G1: Review Result Date | H1: Review With User | I1: Review Result or Action to Take | J1: Sheets Affected | K1: Development Version # | L1: Type | M1: Estimate (hrs) | N1: Actual | O1: Status | P1: Date Unit Tested | Q1: Release Version #
A2: 1 | B2: 2017-04-06 | C2: Bill Slattery | E2: What we are trying to achieve is a stress test of servicing capacity at the higher of; 1. The selected interest rate + 2% or 2. 7% This change should only apply to Residential loans. | K2: ='Version Control'!C2 -> V6.4 Test | L2: Enhancement | O2: Completed | P2: 2017-04-10 | Q2: ='Version Control'!$C$9 -> v6.5
A3: 2 | B3: 2017-04-10 | C3: Trevor Smith | E3: The tax table in the Residential calculator is not the same as in the Consolidated Calculator. Looks like the Residential Calculator was not updated for the 2017/2018 change to the upper limit for the 32.5% rate (ie from $80000 to $87000). | F3: Change the tax table in the Residential Calculator in expectation you want it to match that in the Consolidated Calculator. | G3: 2017-04-10 | H3: Bill Slattery | I3: Change as recommended | K3: ='Version Control'!C3 -> V6.4 Test2 (v6.42) | L3: Bug | O3: Completed | P3: 2017-04-10 | Q3: ='Version Control'!$C$9 -> v6.5
A4: 3 | B4: 2017-04-24 | C4: Bill Slattery | D4: Serviceability Calc | E4: Add Serviceabilty Calculation Sheet as per Consolidated User Problem #131. | F4: Name as "Serviceability Calc" | K4: ='Version Control'!$C$4 -> V6.6 Test (v6.43) | L4: Enhancement | O4: Completed | P4: 2017-05-01 | Q4: ='Version Control'!$C$9 -> v6.5
A5: 4 | B5: 2017-04-24 | C5: Mario Lorenzi | E5: Add two macros: -Ctl/Shift/B to unhide the calculation sheets -Ctl/Shift/H to hide the calculation sheets | K5: ='Version Control'!$C$4 -> V6.6 Test (v6.43) | L5: Enhancement | O5: Completed | P5: 2017-05-01 | Q5: ='Version Control'!$C$9 -> v6.5
A6: 5 | B6: 2017-04-24 | C6: Mario Lorenzi | D6: Tables | E6: Change Company Tax Rate to 28.5% | F6: Set up a a new Company Tax Table on Tables sheet. Change Company Income Calculation (Cell K18) to reference the new Company Tax Table. | K6: ='Version Control'!$C$4 -> V6.6 Test (v6.43) | L6: Data Maintenance | O6: Completed | P6: 2017-05-01 | Q6: ='Version Control'!$C$9 -> v6.5
A7: 6 | B7: 2017-04-24 | C7: Mario Lorenzi | D7: Serviceability | E7: Add Interest Only Term cells for RedZed Loans 1 and 2 on Serviceability sheet. Change the Rate buffering calculation to use the net term (Total Term less Interest Only Term) | K7: ='Version Control'!$C$4 -> V6.6 Test (v6.43) | L7: Enhancement | O7: Completed | P7: 2017-05-01 | Q7: ='Version Control'!$C$9 -> v6.5
A8: 7 | B8: 2017-04-24 | C8: Mario Lorenzi | D8: Serviceability | E8: Add Source of Other Incomes cell for each of the Other Regular Monthly Income lines on the Serviceability sheets. | K8: ='Version Control'!$C$4 -> V6.6 Test (v6.43) | L8: Enhancement | O8: Completed | P8: 2017-05-01 | Q8: ='Version Control'!$C$9 -> v6.5
A9: 8 | B9: 2017-04-24 | C9: Mario Lorenzi | D9: Serviceability | E9: Change Company Income heading to display "Company Income (if applicable)" | K9: ='Version Control'!$C$4 -> V6.6 Test (v6.43) | L9: Enhancement | O9: Completed | P9: 2017-05-01 | Q9: ='Version Control'!$C$9 -> v6.5
A10: 9 | B10: 2017-04-24 | C10: Mario Lorenzi | D10: Serviceability | E10: Swap columns displaying Existing & New v Rental Income/Rental Income | K10: ='Version Control'!$C$4 -> V6.6 Test (v6.43) | L10: Enhancement | O10: Completed | P10: 2017-05-01 | Q10: ='Version Control'!$C$9 -> v6.5
A11: 10 | B11: 2017-04-24 | C11: Mario Lorenzi | D11: Tables | E11: Check Monthly Service Fee calculation - to assume entry of Residential Loans only - calculated at $15 per month | K11: ='Version Control'!$C$4 -> V6.6 Test (v6.43) | L11: Bug | O11: Completed | P11: 2017-05-01 | Q11: ='Version Control'!$C$9 -> v6.5
A12: 11 | B12: 2017-04-24 | C12: Mario Lorenzi | D12: Serviceability | E12: Company Income headings realigned to display above the detail line | K12: ='Version Control'!$C$4 -> V6.6 Test (v6.43) | L12: Enhancement | O12: Completed | P12: 2017-05-01 | Q12: ='Version Control'!$C$9 -> v6.5
A13: 12 | B13: 2017-04-24 | C13: Mario Lorenzi | D13: Serviceability | E13: Company Income section moved to display after Rental Income | K13: ='Version Control'!$C$4 -> V6.6 Test (v6.43) | L13: Enhancement | O13: Completed | P13: 2017-05-01 | Q13: ='Version Control'!$C$9 -> v6.5
A14: 13 | B14: 2017-04-24 | C14: Mario Lorenzi | D14: Serviceability | E14: Change Personal Income descriptors from "Guarantor 1, 2, 3, and 4" to "Applicant / Guarantor 1, 2, 3, and 4" | K14: ='Version Control'!$C$4 -> V6.6 Test (v6.43) | L14: Enhancement | O14: Completed | P14: 2017-05-01 | Q14: ='Version Control'!$C$9 -> v6.5
A15: 14 | B15: 2017-04-24 | C15: Mario Lorenzi | D15: Tables | E15: Tables Sheet - Highlight in yellow those data cells that can be changed to reflect legislation or company policy changes. | K15: ='Version Control'!$C$4 -> V6.6 Test (v6.43) | L15: Enhancement | O15: Completed | P15: 2017-05-01 | Q15: ='Version Control'!$C$9 -> v6.5
A16: 15 | B16: 2017-06-08 | C16: Mario Lorenzi | D16: Tax Calc | E16: Tax Calc Sheet - delete Other Income Cells A10 to I13 | K16: ='Version Control'!$C$5 -> V6.8 Test (v6.44) | L16: Enhancement | O16: Completed | P16: 2017-06-15 | Q16: ='Version Control'!$C$9 -> v6.5
A17: 16 | B17: 2017-06-08 | C17: Mario Lorenzi | D17: Tax Calc | E17: Tax Calc Sheet - delete "Correct Formula For Serviceability - Don’t Think Arm Can Do This" Cells L1 to R25 | K17: ='Version Control'!$C$5 -> V6.8 Test (v6.44) | L17: Enhancement | O17: Completed | P17: 2017-06-15 | Q17: ='Version Control'!$C$9 -> v6.5
A18: 17 | B18: 2017-06-08 | C18: Mario Lorenzi | D18: Serviceability | E18: Fix formatting of Financier Cells for Existing Loans | K18: ='Version Control'!$C$5 -> V6.8 Test (v6.44) | L18: Bug | O18: Completed | P18: 2017-06-15 | Q18: ='Version Control'!$C$9 -> v6.5
A19: 18 | B19: 2017-06-19 | C19: Trevor Smith | D19: User Problems Version Control | E19: Add Sheets for User Problems and Version Control. | K19: ='Version Control'!$C$6 -> V6.9 (v6.45) | L19: Enhancement | O19: Completed | P19: 2017-06-20 | Q19: ='Version Control'!$C$9 -> v6.5
A20: 19 | B20: 2017-06-19 | C20: Angelo Klidomitis | D20: Serviceability | E20: Change Look & Feel as per 4.0 ServiceabilityCalculator.xlsx | K20: ='Version Control'!$C$6 -> V6.9 (v6.45) | L20: Enhancement | O20: Completed | P20: 2017-06-21 | Q20: ='Version Control'!$C$9 -> v6.5
A21: 20 | B21: 2017-05-22 | C21: Mario Lorenzi & Bill Slattery | D21: Serviceability | E21: Increase readability of printed version of the sheet | K21: ='Version Control'!C7 -> V6.10 (v6.46) | L21: Enhancement | O21: Completed | P21: 2017-06-26 | Q21: ='Version Control'!$C$9 -> v6.5
A22: 21 | B22: 2017-06-29 | C22: Mario Lorenzi | D22: Serviceability | E22: 1) Borders missing for Enter Source of Income, Rental Income, Maintenance, & Other Fixed Monthly Repayments. 2) Enter a zero in each dollar entry cell so the user is aware it is available for entry. | K22: ='Version Control'!C8 -> v6.47 Pending | L22: Enhancement & Bug | O22: Completed | P22: 2017-06-29 | Q22: ='Version Control'!$C$9 -> v6.5
A23: 22 | B23: 2018-11-20 | C23: Lorraine Taylor | D23: Servicebility | E23: IF more then three adult in one household please display the mssage | K23: V7.3 | O23: Completed | P23: 2018-11-20 | Q23: V7.3
A24: 23
A25: 24
A26: 25
A27: 26
A28: 27
A29: 28
A30: 29
A31: 30
A32: 31
A33: 32
A34: 33

Sheet Version Control (hidden)
A1: Name | B1: Date | C1: Version # | D1: Development Version File Name | E1: Changes | F1: Released Version | H1: Current Version | I1: =VLOOKUP($J$1,B2:$I$3984,8,FALSE) -> v1.6 250108 | J1: =MAX(B2:B3984) -> 2025-01-08
A2: Trevor Smith | B2: 2017-04-10 | C2: V6.4 Test | D2: K:\IT\Change_Work Requests\Work Request\WR004 - Commercial Calculator\02 Residential Calculator\2017 05 Changes\4. REDZED-Serviceability-170410-V6.4 Test2.xls | E2: User Problem 1 | G2: =IFERROR(VLOOKUP(MONTH(B2),'Day and Months Table'!A:B,2,FALSE)&VLOOKUP(DAY(B2),'Day and Months Table'!A:B,2,FALSE),"N/A") -> 0410 | H2: =RIGHT(YEAR(B2),2)&G2 -> 170410 | I2: =CONCATENATE(C2," ",H2) -> V6.4 Test 170410
A3: Trevor Smith | B3: 2017-04-10 | C3: V6.4 Test2 (v6.42) | D3: K:\IT\Change_Work Requests\Work Request\WR004 - Commercial Calculator\02 Residential Calculator\2017 05 Changes\4. REDZED-Serviceability-170410-V6.4 Test.xls | E3: User Problem 2 | G3: =IFERROR(VLOOKUP(MONTH(B3),'Day and Months Table'!A:B,2,FALSE)&VLOOKUP(DAY(B3),'Day and Months Table'!A:B,2,FALSE),"N/A") -> 0410 | H3: =RIGHT(YEAR(B3),2)&G3 -> 170410 | I3: =CONCATENATE(C3," ",H3) -> V6.4 Test2 (v6.42) 170410
A4: Trevor Smith | B4: 2017-05-01 | C4: V6.6 Test (v6.43) | D4: K:\IT\Change_Work Requests\Work Request\WR004 - Commercial Calculator\02 Residential Calculator\2017 05 Changes\4. REDZED-Serviceability-170410-V6.6 Test.xls | E4: User Problems 3 - 14 inclusive | G4: =IFERROR(VLOOKUP(MONTH(B4),'Day and Months Table'!A:B,2,FALSE)&VLOOKUP(DAY(B4),'Day and Months Table'!A:B,2,FALSE),"N/A") -> 0501 | H4: 170501 | I4: V6.6 Test (v6.43) 170501
A5: Trevor Smith | B5: 2017-05-15 | C5: V6.8 Test (v6.44) | D5: K:\IT\Change_Work Requests\Work Request\WR004 - Commercial Calculator\02 Residential Calculator\2017 05 Changes\4. REDZED-Serviceability-170410-V6.8 Test.xls | E5: User Problems 15 - 17 inclusive | G5: =IFERROR(VLOOKUP(MONTH(B5),'Day and Months Table'!A:B,2,FALSE)&VLOOKUP(DAY(B5),'Day and Months Table'!A:B,2,FALSE),"N/A") -> 0515 | H5: 170515 | I5: V6.8 Test (v6.44) 170515
A6: Trevor Smith | B6: 2017-06-21 | C6: V6.9 (v6.45) | D6: K:\IT\Change_Work Requests\Work Request\WR004 - Commercial Calculator\02 Residential Calculator\2017 05 Changes\4. REDZED-Serviceability-170410-V6.9.xls | E6: User Problem 18 - 19 | F6: Issued to Mario Lorenzi for testing 20 June 2017 | G6: =IFERROR(VLOOKUP(MONTH(B6),'Day and Months Table'!A:B,2,FALSE)&VLOOKUP(DAY(B6),'Day and Months Table'!A:B,2,FALSE),"N/A") -> 0621 | H6: 170621 | I6: V6.9 (v6.45) 170621
A7: Trevor Smith | B7: 2017-06-27 | C7: V6.10 (v6.46) | D7: K:\IT\Change_Work Requests\Work Request\WR004 - Commercial Calculator\02 Residential Calculator\2017 05 Changes\4. REDZED-Serviceability-170410-V6.10.xls A changed versioning system for both this Residential Calculator and the Commercial Calculator was agreed with Tina Georgiadis 26 June 2015 (after receiving feedback from Angel Klidomitis). The last version of the Residential Calculator was named "4. REDZED-Serviceability-170410-V6.4.xls". The naming convention is being changed to "REDZED-Serviceability Type (ie Residential or Commercial) Version Number.xls". Each release will have a date added as a suffix in the format yymmdd. Because the upcoming release does not contain major ammendments it will be named "REDZED-Serviceability Residential v6.5 yymmdd.xls". This being the case, the naming of the development files should have been as per the bracketed values in the Version # cells (eg 4. REDZED-Serviceability-170410-V6.4 Test.xls should have been 4. REDZED-Serviceability-170410-V6.41.xls) To move to the new numbering system this version was copied and renamed and saved to the new development and release folder structure 26 June 2017. The new location and file name is K:\Credit\Servicing Calculator - Residential\Development - Residential\REDZED-Serviceability Residential V0.646.xlsm. The released version number for this series of amendments will be v6.5 with a date added in the format yymmdd. | E7: A renamed version + User Problem 20 | G7: =IFERROR(VLOOKUP(MONTH(B7),'Day and Months Table'!A:B,2,FALSE)&VLOOKUP(DAY(B7),'Day and Months Table'!A:B,2,FALSE),"N/A") -> 0627 | H7: 170627 | I7: V6.10 (v6.46) 170627
A8: Trevor Smith | B8: 2017-06-29 | C8: v6.47 Pending | D8: K:\Credit\Servicing Calculator - Residential\Development - Residential\REDZED-Serviceability Residential V0.647.xlsm | E8: User Problem 21 | G8: =IFERROR(VLOOKUP(MONTH(B8),'Day and Months Table'!A:B,2,FALSE)&VLOOKUP(DAY(B8),'Day and Months Table'!A:B,2,FALSE),"N/A") -> 0629 | H8: 170629 | I8: v6.47 Pending 170629
A9: Trevor Smith | B9: 2017-06-30 | C9: v6.5 | F9: K:\Credit\Servicing Calculator - Residential\Current Released Version - Residential\REDZED-Serviceability Residential V6.5.xlsm | G9: =IFERROR(VLOOKUP(MONTH(B9),'Day and Months Table'!A:B,2,FALSE)&VLOOKUP(DAY(B9),'Day and Months Table'!A:B,2,FALSE),"N/A") -> 0630 | H9: 170630 | I9: v6.5 170630
A10: Mayank Badhen | B10: 2018-06-25 | C10: V7.1A | D10: Updated the living expense | G10: =IFERROR(VLOOKUP(MONTH(B10),'Day and Months Table'!A:B,2,FALSE)&VLOOKUP(DAY(B10),'Day and Months Table'!A:B,2,FALSE),"N/A") -> 0625 | H10: 180625 | I10: V7.1A 180625
A11: Mayank Badhen | B11: 2018-07-25 | C11: V7.2 | D11: updated living expense for Company selecting household is mandatory updated the tax scale compnay income is always attached to household 1 | G11: =IFERROR(VLOOKUP(MONTH(B11),'Day and Months Table'!A:B,2,FALSE)&VLOOKUP(DAY(B11),'Day and Months Table'!A:B,2,FALSE),"N/A") -> 0725 | H11: 180725 | I11: V7.2 180725
A12: Mayank Badhen | B12: 2018-12-11 | C12: V7.2.1 | D12: IF more then three adult in one household please display the mssage | G12: =IFERROR(VLOOKUP(MONTH(B12),'Day and Months Table'!A:B,2,FALSE)&VLOOKUP(DAY(B12),'Day and Months Table'!A:B,2,FALSE),"N/A") -> 1211 | H12: 181211 | I12: V7.2.1 181211
A13: Mayank Badhen | B13: 2019-06-26 | C13: V7.3 | D13: credit card obligations | G13: =IFERROR(VLOOKUP(MONTH(B13),'Day and Months Table'!A:B,2,FALSE)&VLOOKUP(DAY(B13),'Day and Months Table'!A:B,2,FALSE),"N/A") -> 0626 | H13: 190626 | I13: V7.3 190626
A14: Mayank Badhen | B14: 2019-12-02 | C14: V7.4 | D14: IO term fixed | G14: =IFERROR(VLOOKUP(MONTH(B14),'Day and Months Table'!A:B,2,FALSE)&VLOOKUP(DAY(B14),'Day and Months Table'!A:B,2,FALSE),"N/A") -> 1202 | H14: 191202 | I14: V7.4 191202
G15: =IFERROR(VLOOKUP(MONTH(B15),'Day and Months Table'!A:B,2,FALSE)&VLOOKUP(DAY(B15),'Day and Months Table'!A:B,2,FALSE),"N/A") -> N/A | H15: 00N/A | I15: 00N/A
G16: =IFERROR(VLOOKUP(MONTH(B16),'Day and Months Table'!A:B,2,FALSE)&VLOOKUP(DAY(B16),'Day and Months Table'!A:B,2,FALSE),"N/A") -> N/A | H16: 00N/A | I16: 00N/A
G17: =IFERROR(VLOOKUP(MONTH(B17),'Day and Months Table'!A:B,2,FALSE)&VLOOKUP(DAY(B17),'Day and Months Table'!A:B,2,FALSE),"N/A") -> N/A | H17: 00N/A | I17: 00N/A
A18: John Jiang | B18: 2020-07-30 | C18: V10.0 | D18: 1. Residential calculator a. Introduction of a traffic light Pass, Refer to RZ or Fail notification. Pass >1.10, Refer >1.05 – 1.10, Fail below 1.05. The introduction of the Refer category is designed to encourage brokers to Refer deals where we don’t quite meet servicing requirements, but in discussion with RZ we may jointly find a way forward. Potentially these deals may be currently being sent to other lenders who have lower servicing ratio benchmarks). b. Creating a blank template. c. Removal of the tax calculation for company income to fall in line with the policy which states that we assess on NPBT. Other general changes including ensuring; 1. Living expenses were consistent across all selections (there were some errors & inconsistencies) 2. Tax scales were checked and amended for consistency. | G18: =IFERROR(VLOOKUP(MONTH(B18),'Day and Months Table'!A:B,2,FALSE)&VLOOKUP(DAY(B18),'Day and Months Table'!A:B,2,FALSE),"N/A") -> 0730 | H18: 200730 | I18: V10.0 200730
A19: John Jiang | B19: 2020-08-13 | C19: V10.0 Residential | D19: Changed footer | G19: =IFERROR(VLOOKUP(MONTH(B19),'Day and Months Table'!A:B,2,FALSE)&VLOOKUP(DAY(B19),'Day and Months Table'!A:B,2,FALSE),"N/A") -> 0813 | H19: 200813 | I19: V10.0 Residential 200813
A20: John Jiang | B20: 2020-11-16 | C20: V10.1 | D20: changed tax bracket to new 2020 tax regulation | G20: =IFERROR(VLOOKUP(MONTH(B20),'Day and Months Table'!A:B,2,FALSE)&VLOOKUP(DAY(B20),'Day and Months Table'!A:B,2,FALSE),"N/A") -> 1116 | H20: 201116 | I20: V10.1 201116
A21: John Jiang | B21: 2020-12-17 | C21: V10.11 | D21: change interest floor rate from 7% to 6% | G21: =IFERROR(VLOOKUP(MONTH(B21),'Day and Months Table'!A:B,2,FALSE)&VLOOKUP(DAY(B21),'Day and Months Table'!A:B,2,FALSE),"N/A") -> 1217 | H21: 201217 | I21: V10.11 201217
A22: John Jiang | B22: 2021-01-15 | C22: V10.12 | D22: Update HEM table according to Sept 2020 quarter data from HEM | G22: =IFERROR(VLOOKUP(MONTH(B22),'Day and Months Table'!A:B,2,FALSE)&VLOOKUP(DAY(B22),'Day and Months Table'!A:B,2,FALSE),"N/A") -> 0115 | H22: 210115 | I22: V10.12 210115
A23: John Jiang | B23: 2021-09-15 | C23: V10.13 | D23: Update HEM table according to 2021 June quarter HEM review data | G23: =IFERROR(VLOOKUP(MONTH(B23),'Day and Months Table'!A:B,2,FALSE)&VLOOKUP(DAY(B23),'Day and Months Table'!A:B,2,FALSE),"N/A") -> 0915 | H23: =RIGHT(YEAR(B23),2)&G23 -> 210915 | I23: =CONCATENATE(C23," ",H23) -> V10.13 210915
A24: John Jiang | B24: 2021-10-27 | C24: V10.14 | D24: Add a footnote in resi calculator only. | E24: For Company Borrowers DSR must be >1.10 | G24: =IFERROR(VLOOKUP(MONTH(B24),'Day and Months Table'!A:B,2,FALSE)&VLOOKUP(DAY(B24),'Day and Months Table'!A:B,2,FALSE),"N/A") -> 1027 | H24: =RIGHT(YEAR(B24),2)&G24 -> 211027 | I24: =CONCATENATE(C24," ",H24) -> V10.14 211027
A25: Shun | B25: 2022-04-06 | C25: V10.15 | D25: Add DTI Calculation | G25: =IFERROR(VLOOKUP(MONTH(B25),'Day and Months Table'!A:B,2,FALSE)&VLOOKUP(DAY(B25),'Day and Months Table'!A:B,2,FALSE),"N/A") -> 0406 | H25: 220406 | I25: V10.15 220406
A26: Shun | B26: 2022-06-16 | C26: V10.16 | D26: Update Buffer and Floor Rates && Add the Total Credit Card Limit values to the Total Debt value && Update HEM Rates Q1 2022 | G26: =IFERROR(VLOOKUP(MONTH(B26),'Day and Months Table'!A:B,2,FALSE)&VLOOKUP(DAY(B26),'Day and Months Table'!A:B,2,FALSE),"N/A") -> 0616 | H26: 220616 | I26: V10.16 220616
A27: Shun | B27: 2022-07-15 | C27: v10.17 | D27: Update tax rate | G27: =IFERROR(VLOOKUP(MONTH(B27),'Day and Months Table'!A:B,2,FALSE)&VLOOKUP(DAY(B27),'Day and Months Table'!A:B,2,FALSE),"N/A") -> 0715 | H27: 220715 | I27: v10.17 220715
A28: Shun | B28: 2022-08-22 | C28: v10.18 | D28: Update Hem Rate | G28: =IFERROR(VLOOKUP(MONTH(B28),'Day and Months Table'!A:B,2,FALSE)&VLOOKUP(DAY(B28),'Day and Months Table'!A:B,2,FALSE),"N/A") -> 0822 | H28: 220822 | I28: v10.18 220822
A29: Shun | B29: 2022-11-29 | C29: v10.19 | D29: Update Hem Rate | G29: =IFERROR(VLOOKUP(MONTH(B29),'Day and Months Table'!A:B,2,FALSE)&VLOOKUP(DAY(B29),'Day and Months Table'!A:B,2,FALSE),"N/A") -> 1129 | H29: 221129 | I29: v10.19 221129
A30: Shun | B30: 2023-03-06 | C30: v10.20 | D30: Update Hem Rate | G30: =IFERROR(VLOOKUP(MONTH(B30),'Day and Months Table'!A:B,2,FALSE)&VLOOKUP(DAY(B30),'Day and Months Table'!A:B,2,FALSE),"N/A") -> 0306 | H30: 230306 | I30: v10.20 230306
A31: Shun | B31: 2023-05-23 | C31: v10.21 | D31: Update Hem Rate | G31: =IFERROR(VLOOKUP(MONTH(B31),'Day and Months Table'!A:B,2,FALSE)&VLOOKUP(DAY(B31),'Day and Months Table'!A:B,2,FALSE),"N/A") -> 0523 | H31: 230523 | I31: v10.21 230523
A32: Shun | B32: 2023-08-03 | C32: v10.22 | D32: Split 3 Loans | G32: =IFERROR(VLOOKUP(MONTH(B32),'Day and Months Table'!A:B,2,FALSE)&VLOOKUP(DAY(B32),'Day and Months Table'!A:B,2,FALSE),"N/A") -> 0803 | H32: 230803 | I32: v10.22 230803
A33: Shun | B33: 2023-08-15 | C33: v10.23 | D33: Update APR Buffer | G33: =IFERROR(VLOOKUP(MONTH(B33),'Day and Months Table'!A:B,2,FALSE)&VLOOKUP(DAY(B33),'Day and Months Table'!A:B,2,FALSE),"N/A") -> 0815 | H33: 230815 | I33: v10.23 230815
A34: Shun | B34: 2023-08-23 | C34: v10.24 | D34: Update HEM Rate | G34: =IFERROR(VLOOKUP(MONTH(B34),'Day and Months Table'!A:B,2,FALSE)&VLOOKUP(DAY(B34),'Day and Months Table'!A:B,2,FALSE),"N/A") -> 0823 | H34: 230823 | I34: v10.24 230823
A35: Shun | B35: 2023-08-31 | C35: v10.25 | D35: Update the UI | G35: =IFERROR(VLOOKUP(MONTH(B35),'Day and Months Table'!A:B,2,FALSE)&VLOOKUP(DAY(B35),'Day and Months Table'!A:B,2,FALSE),"N/A") -> 0831 | H35: 230831 | I35: v10.25 230831
A36: Shun | B36: 2023-09-01 | C36: v10.26 | D36: Change the old logic to calcualtor the member level DSR | G36: =IFERROR(VLOOKUP(MONTH(B36),'Day and Months Table'!A:B,2,FALSE)&VLOOKUP(DAY(B36),'Day and Months Table'!A:B,2,FALSE),"N/A") -> 0901 | H36: =RIGHT(YEAR(B36),2)&G36 -> 230901 | I36: =CONCATENATE(C36," ",H36) -> v10.26 230901
A37: Shun | B37: 2023-09-02 | C37: v10.27 | D37: Update some wording | G37: =IFERROR(VLOOKUP(MONTH(B37),'Day and Months Table'!A:B,2,FALSE)&VLOOKUP(DAY(B37),'Day and Months Table'!A:B,2,FALSE),"N/A") -> 0902 | H37: 230902 | I37: v10.27 230902
A38: Shun | B38: 2024-07-01 | C38: v1.3 | D38: Change the Version number for SMSF Calculator | G38: =IFERROR(VLOOKUP(MONTH(B38),'Day and Months Table'!A:B,2,FALSE)&VLOOKUP(DAY(B38),'Day and Months Table'!A:B,2,FALSE),"N/A") -> 0701 | H38: 240701 | I38: v1.3 240701
A39: Shun | B39: 2024-07-02 | C39: v1.4 | D39: Add different Rental income to member and funding level | G39: =IFERROR(VLOOKUP(MONTH(B39),'Day and Months Table'!A:B,2,FALSE)&VLOOKUP(DAY(B39),'Day and Months Table'!A:B,2,FALSE),"N/A") -> 0702 | H39: =RIGHT(YEAR(B39),2)&G39 -> 240702 | I39: =CONCATENATE(C39," ",H39) -> v1.4 240702
A40: Shun | B40: 2024-11-18 | C40: v1.5 | D40: Update HEM Rate | G40: =IFERROR(VLOOKUP(MONTH(B40),'Day and Months Table'!A:B,2,FALSE)&VLOOKUP(DAY(B40),'Day and Months Table'!A:B,2,FALSE),"N/A") -> 1118 | H40: =RIGHT(YEAR(B40),2)&G40 -> 241118 | I40: =CONCATENATE(C40," ",H40) -> v1.5 241118
A41: Shun | B41: 2025-01-08 | C41: v1.6 | D41: Update the warning banner for minium liquid asset | G41: =IFERROR(VLOOKUP(MONTH(B41),'Day and Months Table'!A:B,2,FALSE)&VLOOKUP(DAY(B41),'Day and Months Table'!A:B,2,FALSE),"N/A") -> 0108 | H41: =RIGHT(YEAR(B41),2)&G41 -> 250108 | I41: =CONCATENATE(C41," ",H41) -> v1.6 250108

Sheet Day and Months Table (hidden)
A1: 1 | B1: 01
A2: 2 | B2: 02
A3: 3 | B3: 03
A4: 4 | B4: 04
A5: 5 | B5: 05
A6: 6 | B6: 06
A7: 7 | B7: 07
A8: 8 | B8: 08
A9: 9 | B9: 09
A10: 10 | B10: 10
A11: 11 | B11: 11
A12: 12 | B12: 12
A13: 13 | B13: 13
A14: 14 | B14: 14
A15: 15 | B15: 15
A16: 16 | B16: 16
A17: 17 | B17: 17
A18: 18 | B18: 18
A19: 19 | B19: 19
A20: 20 | B20: 20
A21: 21 | B21: 21
A22: 22 | B22: 22
A23: 23 | B23: 23
A24: 24 | B24: 24
A25: 25 | B25: 25
A26: 26 | B26: 26
A27: 27 | B27: 27
A28: 28 | B28: 28
A29: 29 | B29: 29
A30: 30 | B30: 30
A31: 31 | B31: 31
